Workbook

Sheet Capacity Estimator
G3: Testing Site Capacity Estimator
C7: Content Management Information | H7: Launch of DRC INSIGHT
C9: Using COS Service Device for Content Hosting | D9: Yes - At the Site | P9: Average Time to Download Test Engine | Q9: ='Capacity Estimator Calculations'!E45 -> 4.874 | R9: ='Capacity Estimator Calculations'!F45 -> Seconds
H11: Start of Test
C13: Testing Volume Information | P13: Average Time to Download a Fixed-Form Testing Form | Q13: ='Capacity Estimator Calculations'!E101 -> 2.704 | R13: ='Capacity Estimator Calculations'!F101 -> Seconds
C15: Students Testing with Fixed-Form at the Same Time | D15: 400 | P15: Average Time to Download a CAT Form | Q15: ='Capacity Estimator Calculations'!E103 -> 0.92685109 | R15: ='Capacity Estimator Calculations'!F103 -> Seconds
C17: Students Testing with CAT at the Same Time | D17: 25 | P17: Average Time to Download an Accommodated Testing Form | Q17: ='Capacity Estimator Calculations'!E105 -> 1.354 | R17: ='Capacity Estimator Calculations'!F105 -> Seconds
C19: Accommodated Students Testing at the Same Time | D19: 25 | H19: During the Test
C21: Total Students Testing at the Same Time | D21: =SUM(D15:D20) -> 450 | P21: Average Wait Time Between Fixed-Form Items | Q21: ='Capacity Estimator Calculations'!E175 -> 0.0161972645 | R21: ='Capacity Estimator Calculations'!F175 -> Seconds
P23: Average Wait Time Between CAT Form Items | Q23: ='Capacity Estimator Calculations'!E177 -> 0.306183587 | R23: ='Capacity Estimator Calculations'!F177 -> Seconds
C25: Estimated % of Students Starting the Test at Nearly the Same Time | D25: 0.3 | P25: Average Wait Time Between Accommodated Form Items | Q25: ='Capacity Estimator Calculations'!E179 -> 0.6951972645 | R25: ='Capacity Estimator Calculations'!F179 -> Seconds
C27: Estimated % of Students Responding at Nearly the Same Time | D27: 0.1
C31: Network Information | H31: Good Performance | M31: Acceptable Performance | R31: Poor Performance
C33: Internet Service Provider Connection Capacity | D33: 10000 | E33: (Mbps) | L33: Average Form Size | O33: Average Size of | R33: Average Size of
L34: per Test | O34: Each Response | R34: Next Item
C35: Wide Area Network (WAN) Connection Capacity | D35: 1000 | E35: (Mbps) | J35: Fixed-Form Test | K35: 2 | M35: MB | N35: 5 | P35: KB | R35: N/A
C37: Local Area Network (LAN) Connection Capacity | D37: 1000 | E37: (Mbps) | J37: Computer-Adaptive Test (CAT) | K37: 700 | M37: KB | N37: 5 | P37: KB | Q37: 25 | S37: KB
C39: Testing Devices Average Connection Speed | D39: 250 | E39: (Mbps) | J39: TTS, VSL, HVA Accommodation | K39: 1 | M39: MB | N39: 5 | P39: KB | Q39: 1.5 | S39: MB
C41: Percent of Bandwidth Available for Testing | D41: 0.8 | J41: Test Engine | K41: 3.6 | M41: MB
C43: Type of Internet Connection | D43: Fiber
C45: Internet Response Time/Latency (1000 miles round trip) | D45: ='Capacity Estimator Calculations'!G17 -> 0.0117 | E45: (secs) | G45: =D45*1000 -> 11.7 | P45: Average CAT Scoring Process | Q45: 0.275 | R45: (secs)
C47: WAN Response Time/Latency (20 miles round trip) | D47: ='Capacity Estimator Calculations'!G18 -> 0.0023 | E47: (secs) | G47: =D47*1000 -> 2.3 | H47: (ms) | M47: Equipment Latency (round trip) | N47: ='Capacity Estimator Calculations'!G16 -> 0.002 | P47: (secs) | Q47: =N47*1000 -> 2 | R47: (ms)
C49: LAN Response Time/Latency (.2 miles round trip) | D49: ='Capacity Estimator Calculations'!G19 -> 0.002 | E49: (secs) | G49: =D49*1000 -> 2 | H49: (ms) | M49: Latency per mile | N49: =ROUND('Capacity Estimator Calculations'!E13,6) -> 8e-06 | P49: (secs) | Q49: =N49*1000 -> 0.008 | R49: (ms)
B50: Important: The Testing Site Capacity Estimator can only provide an estimate—it cannot factor in all possible variables and possible network traffic that can impact performance.
T51: ver. 4.1.2

Sheet Capacity Estimator Calculations (hidden)
B2: Latency Assumptions and calculations
C3: Type of Internet Connection | E3: Average Latency
C4: Fiber | D4: 1 | E4: 17ms
C5: Cable | D5: =28/17 -> 1.647058824 | E5: 28ms | R5: 10ms for every 1000 miles
C6: DSL | D6: =44/17 -> 2.588235294 | E6: 44ms
C7: 4G Cellular Data | D7: =60/17 -> 3.529411765 | E7: 60ms | R7: The loss of speed measures roughly 8.2 microseconds per mile, or 0.82 milliseconds per 100 miles. The latency increases if the data packet must pass through a router or a switch
C8: 3G Cellular Data | D8: =120/17 -> 7.058823529 | E8: 120ms
C9: Satellite | D9: =630/17 -> 37.05882353 | E9: 603ms | R9: =0.82/100 -> 0.0082
C10: Type of Internet Connection Selected | D10: ='Capacity Estimator'!D43 -> Fiber | R10: =9/1000 -> 0.009
C11: Internet Latency Factor | D11: =IF(D10=C4,D4,IF(D10=C5,D5,IF(D10=C6,D6,IF(D10=C7,D7,IF(D10=C8,D8,D9))))) -> 1
D12: ms | E12: sec | R12: Round-trip distance divide by 124 miles/msec, and add 2 milliseconds (for the electronics)
C13: Speed of light in fibre: 124 mi / millisecond | D13: =1/124 -> 0.008064516129 | E13: =ROUND(D13/1000,9) -> 8.065e-06 | R13: =1/124 -> 0.008064516129
C14: Path adjustment | D14: 0.2 | R14: =V19/124+2 -> 2.806451613
D15: Distance | E15: round trip | F15: ms | G15: sec | H15: total
C16: Equipment Latency | D16: 1 | E16: =D16*2 -> 2 | F16: =E16 -> 2 | G16: =ROUND(F16/1000,9) -> 0.002
C17: ISP Latency | D17: 500 | E17: =D17*2 -> 1000 | F17: =(((E17*(1+$D$14)*$D$13)*D11)+$F$16) -> 11.67741935 | G17: =ROUND(F17/1000,4) -> 0.0117 | H17: =G17+G18-G19+G16 -> 0.014
C18: WAN Latency | D18: 15 | E18: =D18*2 -> 30 | F18: =((E18*(1+$D$14)*$D$13)+$F$16) -> 2.290322581 | G18: =ROUND(F18/1000,4) -> 0.0023 | H18: =G18+G19+G16 -> 0.0063
C19: LAN Latency | D19: 0.1 | E19: 0.2 | F19: =(E19*$D$13)+$F$16 -> 2.001612903 | G19: =ROUND(F19/1000,4) -> 0.002 | H19: =G19+G16 -> 0.004 | V19: 100 | X19: =R14/1000 -> 0.002806451613
B21: Response time scales
D22: Test Engine | E22: Forms | F22: Responses
C23: Good Performance | D23: 0 | E23: 15 | F23: 20
C24: Marginal Performance | D24: 0 | E24: 10 | F24: 20
C25: Poor Performance | D25: 0 | E25: 1.5 | F25: 3
B27: TRUE | C27: Hide latency detail | E27: Links to data on other sheet
B28: FALSE | C28: Hide content detail | E28: Calculations | W28: Typical, approximate, values for latency that you might experience include:
B29: Test Engine Calucation
B30: A | C30: Avg. Internet Latency | E30: =H17 -> 0.014 | F30: Currently only delivered via the Internet | W30: 10ms for a modern Carrier Ethernet network such as BT Ethernet Connect
B31: B | C31: # of Students | E31: ='Capacity Estimator'!$D$21 -> 450 | W31: 20ms for an mpls network such as BT IP Connect, when using Class of Service to prioritise traffic
B32: C | C32: Estimated % of Students Starting the Test at the Nearly Same Time | E32: ='Capacity Estimator'!$D$25 -> 0.3 | W32: 60ms for 4G cellular data which is often used for 4G WAN and internet connections
B33: D | C33: Estimated number of Students Starting the Test at the Nearly Same Time - (B*C) | E33: =E31*E32 -> 135 | W33: 120ms for 3G cellular data
B34: E | C34: Test Engine Size | E34: ='Capacity Estimator'!$K$41 -> 3.6 | F34: ='Capacity Estimator'!$M$41 -> MB | G34: =IF(F34="MB",E34,IF(F34="GB",E34*1024,E34*0.000976562)) -> 3.6 | H34: MB | W34: 800ms for satellite
B35: F | C35: Test Engine Size (Mbits) - (E*8) | E35: =8*G34 -> 28.8 | F35: Mb
B36: G | C36: Size of all Test Engine Payload | E36: =E33*E35 -> 3888 | F36: Mb
B37: H | C37: Location of Content - Test Engine currently comes from DRC via the Intenet - force to No | E37: No | H37: ='Capacity Estimator'!$D$9 -> Yes - At the Site
B38: I | C38: LAN - Yes - At the Site | E38: ='Capacity Estimator'!$D$37 -> 1000 | F38: (Mbps)
C39: WAN - Yes - At the District | E39: ='Capacity Estimator'!$D$35 -> 1000 | F39: (Mbps)
C40: ISP - No | E40: ='Capacity Estimator'!$D$33 -> 10000 | F40: (Mbps)
C41: DownLoad Bandwidth (Mbps) | E41: =IF(E37="Yes - At the Site",E38,IF(E37="Yes - at the District", E39,MIN(E39,E40))) -> 1000 | F41: (Mbps)
B42: J | C42: Percent of Bandwidth Available for Testing | E42: ='Capacity Estimator'!$D$41 -> 0.8
B43: K | C43: Average Available Download Bandwidth (Mbps) - (I*J) | E43: =E41*E42 -> 800 | F43: (Mbps)
B44: L | C44: Avg Time to Download Test Engine - (A+(G/K)) | E44: =E30+(E36/E43) -> 4.874 | F44: Latency + (Total payload / Avg Available Download Bandwidth))
B45: M | C45: Average download time converted to Sec, Min or Hours | E45: =IF(E44>3600,E44/3600,IF(E44>60,E44/60,E44)) -> 4.874 | F45: =IF(E44>3600,I45,IF(E44>60,H45,G45)) -> Seconds | G45: Seconds | H45: Minutes | I45: Hours
B48: Type of testing as a percent of overall testing
D49: Form Content Percent | G49: Item Content Percent
C50: Total Fixed Form Testers | D50: ='Capacity Estimator'!$D$15 -> 400 | E50: =D50/$D$53 -> 0.8888888889 | G50: ='Capacity Estimator'!$D$15*0 -> 0 | H50: =G50/$G$53 -> 0
C51: Total CAT Form Testers | D51: ='Capacity Estimator'!$D$17 -> 25 | E51: =D51/$D$53 -> 0.05555555556 | G51: ='Capacity Estimator'!$D$17 -> 25 | H51: =G51/$G$53 -> 0.5
C52: Total Accommodated Form Testers | D52: ='Capacity Estimator'!$D$19 -> 25 | E52: =D52/$D$53 -> 0.05555555556 | G52: ='Capacity Estimator'!$D$19 -> 25 | H52: =G52/$G$53 -> 0.5
C53: Total Testers | D53: =SUM(D50:D52) -> 450 | E53: =SUM(E50:E52) -> 1 | G53: =SUM(G50:G52) -> 50 | H53: =SUM(H50:H52) -> 1
B56: All Form Download Calucation
B57: Fixed Form Download Calucation
B58: A | C58: # of Students taking Fixed Form Test | E58: ='Capacity Estimator'!$D$15 -> 400
B59: B | C59: Estimated % of Students Starting the Test at the Nearly Same Time | E59: ='Capacity Estimator'!$D$25 -> 0.3
B60: C | C60: Estimated number of Students Starting the Test at the Nearly Same Time - (A*B) | E60: =E58*E59 -> 120
B61: D | C61: Form Size | E61: ='Capacity Estimator'!$K$35 -> 2 | F61: ='Capacity Estimator'!$M$35 -> MB | G61: =IF(F61="MB",E61,IF(F61="GB",E61*1024,E61*0.000976562)) -> 2 | H61: MB
B62: E | C62: Item Size (Mbits) - (D*8) | E62: =8*G61 -> 16 | F62: Mb
B63: F | C63: Size of all Fixed Forms Testing Form Content | E63: =E60*E62 -> 1920 | F63: Mb
B64: G | C64: Percent of all form content | E64: =E63/E85 -> 0.9500174052
B66: Computer Adaptive (CAT) Form Download Calucation
B67: A | C67: # of Students taking a Computer Adaptive Test | E67: ='Capacity Estimator'!$D$17 -> 25
B68: B | C68: Estimated % of Students Starting the Test at the Nearly Same Time | E68: ='Capacity Estimator'!$D$25 -> 0.3
B69: C | C69: Estimated number of Students Starting the Test at the Nearly Same Time - (A*B) | E69: =E67*E68 -> 7.5
B70: D | C70: Form Size | E70: ='Capacity Estimator'!$K$37 -> 700 | F70: ='Capacity Estimator'!$M$37 -> KB | G70: =IF(F70="MB",E70,IF(F70="GB",E70*1024,E70*0.000976562)) -> 0.6835934 | H70: MB
B71: E | C71: Item Size (Mbits) - (D*8) | E71: =8*G70 -> 5.4687472 | F71: Mb
B72: F | C72: Size of all CAT Form Content | E72: =E69*E71 -> 41.015604 | F72: Mb
B73: G | C73: Percent of all form content | E73: =E72/E85 -> 0.02029455088
B75: Accommodated Form Download Calucation
B76: A | C76: # of Students taking an Accommodated Test | E76: ='Capacity Estimator'!$D$19 -> 25
B77: B | C77: Estimated % of Students Starting the Test at the Nearly Same Time | E77: ='Capacity Estimator'!$D$25 -> 0.3
B78: C | C78: Estimated number of Students Starting the Test at the Nearly Same Time - (A*B) | E78: =E76*E77 -> 7.5
B79: D | C79: Form Size | E79: ='Capacity Estimator'!$K$39 -> 1 | F79: ='Capacity Estimator'!$M$39 -> MB | G79: =IF(F79="MB",E79,IF(F79="GB",E79*1024,E79*0.000976562)) -> 1 | H79: MB
B80: E | C80: Item Size (Mbits) - (D*8) | E80: =8*G79 -> 8 | F80: Mb
B81: F | C81: Size of all Accommodated Form Content | E81: =E78*E80 -> 60 | F81: Mb
B82: G | C82: Percent of all form content | E82: =E81/E85 -> 0.02968804391
B84: All Form Download Calucation
B85: G | C85: Total Form Size | E85: =E63+E72+E81 -> 2021.015604 | F85: Mb
B86: H | C86: Location of Content - Using COS Service Device Content Hosting | E86: ='Capacity Estimator'!$D$9 -> Yes - At the Site
B87: I | C87: LAN - Yes - At the Site | E87: =$H$19 -> 0.004 | F87: (Secs)
C88: WAN - Yes - At the District | E88: =$H$18 -> 0.0063 | F88: (Secs)
C89: ISP - No | E89: =$H$17 -> 0.014 | F89: (Secs)
C90: Avg. Network Latency | E90: =IF(E86="Yes - At the Site",E87,IF(E86="Yes - at the District", E88,E89)) -> 0.004 | F90: (Secs)
B91: J | C91: LAN - Yes - At the Site | E91: ='Capacity Estimator'!$D$37 -> 1000 | F91: (Mbps)
C92: WAN - Yes - At the District | E92: ='Capacity Estimator'!$D$35 -> 1000 | F92: (Mbps)
C93: ISP - No | E93: ='Capacity Estimator'!$D$33 -> 10000 | F93: (Mbps)
C94: DownLoad Bandwidth (Mbps) | E94: =IF(E86="Yes - At the Site",E91,IF(E86="Yes - at the District", MIN(E91,E92),MIN(E91,E92,E93))) -> 1000 | F94: (Mbps)
B95: K | C95: Percent of Bandwidth Available for Testing | E95: ='Capacity Estimator'!$D$41 -> 0.8
B96: L | C96: Average Available Download Bandwidth (Mbps) - (J*K) | E96: =E94*E95 -> 800 | F96: (Mbps)
C97: Bandwidth (Mbps) Available for Fixed Form Downloads | D97: =$E$50 -> 0.8888888889 | E97: =E96*D97 -> 711.1111111 | F97: (Mbps)
C98: Bandwidth (Mbps) Available for CAT Form Downloads | D98: =$E$51 -> 0.05555555556 | E98: =E96*D98 -> 44.44444444 | F98: (Mbps)
C99: Bandwidth (Mbps) Available for Accommodated Form Downloads | D99: =$E$52 -> 0.05555555556 | E99: =E96*D99 -> 44.44444444 | F99: (Mbps)
B100: M | C100: Avg Time to Download Fixed Form Content - (I+(G/L)) | E100: =IF(E58=0,0,E90+IFERROR((E63/E97),0)) -> 2.704
B101: N | C101: Average download time converted to Sec, Min or Hours | E101: =IF(E100>3600,E100/3600,IF(E100>60,E100/60,E100)) -> 2.704 | F101: =IF(E100>3600,I101,IF(E100>60,H101,G101)) -> Seconds | G101: Seconds | H101: Minutes | I101: Hours
B102: M | C102: Avg Time to Download CAT Form Content - (I+(G/L)) | E102: =IF(E67=0,0,E90+IFERROR((E72/E98),0)) -> 0.92685109
B103: N | C103: Average download time converted to Sec, Min or Hours | E103: =IF(E102>3600,E102/3600,IF(E102>60,E102/60,E102)) -> 0.92685109 | F103: =IF(E102>3600,I103,IF(E102>60,H103,G103)) -> Seconds | G103: Seconds | H103: Minutes | I103: Hours
B104: M | C104: Avg Time to Download Accommodated Form Content - (I+(G/L)) | E104: =IF(E76=0,0,E90+IFERROR((E81/E99),0)) -> 1.354
B105: N | C105: Average download time converted to Sec, Min or Hours | E105: =IF(E104>3600,E104/3600,IF(E104>60,E104/60,E104)) -> 1.354 | F105: =IF(E104>3600,I105,IF(E104>60,H105,G105)) -> Seconds | G105: Seconds | H105: Minutes | I105: Hours
B106: M | C106: Avg Time to Download Form Content - (I+(G/L)) | E106: =E90+(E85/E96) -> 2.530269505 | F106: Latency + (Total payload / Avg Available Download Bandwidth))
B107: N | C107: Average download time converted to Sec, Min or Hours | E107: =IF(E106>3600,E106/3600,IF(E106>60,E106/60,E106)) -> 2.530269505 | F107: =IF(E106>3600,I107,IF(E106>60,H107,G107)) -> Seconds | G107: Seconds | H107: Minutes | I107: Hours
B110: Response Time Between Items Calucation
B111: Fixed Form Item Download Calucation
B112: A | C112: # of Students taking Fixed Form Test | E112: ='Capacity Estimator'!$D$15 -> 400
B113: B | C113: Estimated % of Students Processing Responses At Once (Think Time) | E113: ='Capacity Estimator'!$D$27 -> 0.1
B114: C | C114: Estimated number of Students Starting the Test at the Nearly Same Time - (A*B) | E114: =E112*E113 -> 40
B115: D | C115: Item Size | E115: ='Capacity Estimator'!$Z$37 -> 0 | F115: ='Capacity Estimator'!$AA$37 -> 0 | G115: =IF(F115="MB",E115,IF(F115="GB",E115*1024,E115*0.000976562)) -> 0 | H115: MB
B116: E | C116: Item Size (Mbits) - (D*8) | E116: =8*G115 -> 0 | F116: Mb
B117: F | C117: Size of all Fixed Forms Testing Item Content | E117: =E114*E116 -> 0 | F117: Mb
B118: G | C118: Percent of all Item content | E118: =E117/E151 -> 0
B119: H | C119: Response Size | E119: ='Capacity Estimator'!$N$35 -> 5 | F119: ='Capacity Estimator'!$P$35 -> KB | G119: =IF(F119="MB",E119,IF(F119="GB",E119*1024,E119*0.000976562)) -> 0.00488281 | H119: MB
B120: I | C120: Item Size (Mbits) - (H*8) | E120: =8*G119 -> 0.03906248 | F120: Mb
B121: J | C121: Size of all Responses | E121: =E114*E120 -> 1.5624992 | F121: Mb
B122: K | C122: Size of all Fixed Forms Testing Item Content and Responses | E122: =E117+E121 -> 1.5624992 | F122: Mb
B124: Computer Adaptive (CAT) Form item Download Calucation
B125: A | C125: # of Students taking a Computer Adaptive Test | E125: ='Capacity Estimator'!$D$17 -> 25
B126: B | C126: Estimated % of Students Processing Responses At Once (Think Time) | E126: ='Capacity Estimator'!$D$27 -> 0.1
B127: C | C127: Estimated number of Students Starting the Test at the Nearly Same Time - (A*B) | E127: =E125*E126 -> 2.5
B128: D | C128: Item Size | E128: ='Capacity Estimator'!$Q$37 -> 25 | F128: ='Capacity Estimator'!$S$37 -> KB | G128: =IF(F128="MB",E128,IF(F128="GB",E128*1024,E128*0.000976562)) -> 0.02441405 | H128: MB
B129: E | C129: Item Size (Mbits) - (D*8) | E129: =8*G128 -> 0.1953124 | F129: Mb
B130: F | C130: Size of all CAT Item Content | E130: =E127*E129 -> 0.488281 | F130: Mb
B131: G | C131: Percent of all form content | E131: =E130/E151 -> 0.01514233076
B132: H | C132: Response Size | E132: ='Capacity Estimator'!$N$37 -> 5 | F132: ='Capacity Estimator'!$P$37 -> KB | G132: =IF(F132="MB",E132,IF(F132="GB",E132*1024,E132*0.000976562)) -> 0.00488281 | H132: MB
B133: I | C133: Item Size (Mbits) - (H*8) | E133: =8*G132 -> 0.03906248 | F133: Mb
B134: J | C134: Size of all Responses | E134: =E127*E133 -> 0.0976562 | F134: Mb
B135: K | C135: Size of all CAT Forms Testing Item Content and Responses | E135: =E130+E134 -> 0.5859372 | F135: Mb
B137: Accommodated Form Item Download Calucation
B138: A | C138: # of Students taking an Accommodated Test | E138: ='Capacity Estimator'!$D$19 -> 25
B139: B | C139: Estimated % of Students Processing Responses At Once (Think Time) | E139: ='Capacity Estimator'!$D$27 -> 0.1
B140: C | C140: Estimated number of Students Starting the Test at the Nearly Same Time - (A*B) | E140: =E138*E139 -> 2.5
B141: D | C141: Item Size | E141: ='Capacity Estimator'!$Q$39 -> 1.5 | F141: ='Capacity Estimator'!$S$39 -> MB | G141: =IF(F141="MB",E141,IF(F141="GB",E141*1024,E141*0.000976562)) -> 1.5 | H141: MB
B142: E | C142: Item Size (Mbits) - (D*8) | E142: =8*G141 -> 12 | F142: Mb
B143: F | C143: Size of all Accommodated Item Content | E143: =E140*E142 -> 30 | F143: Mb
B144: G | C144: Percent of all form content | E144: =E143/E151 -> 0.9303452785
B145: H | C145: Response Size | E145: ='Capacity Estimator'!$N$39 -> 5 | F145: ='Capacity Estimator'!$P$39 -> KB | G145: =IF(F145="MB",E145,IF(F145="GB",E145*1024,E145*0.000976562)) -> 0.00488281 | H145: MB
B146: I | C146: Item Size (Mbits) - (H*8) | E146: =8*G145 -> 0.03906248 | F146: Mb
B147: J | C147: Size of all Responses | E147: =E140*E146 -> 0.0976562 | F147: Mb
B148: K | C148: Size of all Accommodated Forms Testing Item Content and Responses | E148: =E143+E147 -> 30.0976562 | F148: Mb
B150: All Response Time Between Items Calucation
B151: G | C151: Total Item Size and response size | E151: =E122+E135+E148 -> 32.2460926 | F151: Mb
B152: H | C152: Location of Content - Using COS Service Device Content Hosting | E152: ='Capacity Estimator'!$D$9 -> Yes - At the Site
B153: I | C153: LAN - Yes - At the Site | E153: =$H$19 -> 0.004 | F153: (Secs)
C154: WAN - Yes - At the District | E154: =$H$18 -> 0.0063 | F154: (Secs)
C155: ISP - No | E155: =$H$17 -> 0.014 | F155: (Secs)
C156: Avg. Network Latency | E156: =IF(E152="Yes - At the Site",E153,IF(E152="Yes - at the District", E154,E155)) -> 0.004 | F156: (Secs)
B157: J | C157: LAN - Yes - At the Site | E157: ='Capacity Estimator'!$D$37 -> 1000 | F157: (Mbps)
C158: WAN - Yes - At the District | E158: ='Capacity Estimator'!$D$35 -> 1000 | F158: (Mbps)
C159: ISP - No | E159: ='Capacity Estimator'!$D$33 -> 10000 | F159: (Mbps)
C160: DownLoad Bandwidth (Mbps) | E160: =IF(E152="Yes - At the Site",E157,IF(E152="Yes - at the District", MIN(E157,E158),MIN(E157,E158,E159))) -> 1000 | F160: (Mbps)
B161: K | C161: Percent of Bandwidth Available for Testing | E161: ='Capacity Estimator'!$D$41 -> 0.8
B162: L | C162: Average Available Download Bandwidth (Mbps) - (J*K) | E162: =E160*E161 -> 800 | F162: (Mbps)
B163: M | C163: Bandwidth (Mbps) Available for Fixed Form Item Downloads | D163: =$E$50 -> 0.8888888889 | E163: =E162*D163 -> 711.1111111 | F163: (Mbps)
C164: Bandwidth (Mbps) Available for CAT Item Downloads | D164: =$E$51 -> 0.05555555556 | E164: =E162*D164 -> 44.44444444 | F164: (Mbps)
C165: Bandwidth (Mbps) Available for Accommodated Item Downloads | D165: =$E$52 -> 0.05555555556 | E165: =E162*D165 -> 44.44444444 | F165: (Mbps)
B166: N | C166: Internet Latency for Responses + Item Latency from Content source | E166: =E155+E156 -> 0.018
B167: P | C167: Avg Time to Download Fixed Form Item Content and process response - (N-I+(K/M)) | E167: =IF(E112=0,0,E166-E156+IFERROR((E122/E163),0)) -> 0.0161972645 | F167: No item content download required
C168: Avg Time to Download CAT Item Content and process response - (N+(K/M)) | E168: =IF(E125=0,0,E166+IFERROR((E135/E164),0)) -> 0.031183587
C169: Avg Time to Download Accommodated Item Content and process response - (N+(K/M)) | E169: =IF(E138=0,0,E166+IFERROR((E148/E165),0)) -> 0.6951972645
B170: Q | C170: Average time to process a Fixed Form score | E170: 0 | F170: (secs)
C171: Average time to process a CAT Form score | E171: =IF(E125=0,0,'Capacity Estimator'!$Q$45) -> 0.275 | F171: ='Capacity Estimator'!$R$45 -> (secs)
C172: Average time to process an Accommodated Form score | E172: 0 | F172: (secs)
B174: P | C174: Average Wait Time Between Fixed Form Items - (N+O) | E174: =E167+E170 -> 0.0161972645
B175: Q | C175: Average download time converted to Sec, Min or Hours | E175: =IF(E174>3600,E174/3600,IF(E174>60,E174/60,E174)) -> 0.0161972645 | F175: =IF(E174>3600,I175,IF(E174>60,H175,G175)) -> Seconds | G175: Seconds | H175: Minutes | I175: Hours
B176: P | C176: Average Wait Time Between Fixed Form Items - (N+O) | E176: =E168+E171 -> 0.306183587
B177: Q | C177: Average download time converted to Sec, Min or Hours | E177: =IF(E176>3600,E176/3600,IF(E176>60,E176/60,E176)) -> 0.306183587 | F177: =IF(E176>3600,I177,IF(E176>60,H177,G177)) -> Seconds | G177: Seconds | H177: Minutes | I177: Hours
B178: P | C178: Average Wait Time Between Fixed Form Items - (N+O) | E178: =E169+E172 -> 0.6951972645
B179: Q | C179: Average download time converted to Sec, Min or Hours | E179: =IF(E178>3600,E178/3600,IF(E178>60,E178/60,E178)) -> 0.6951972645 | F179: =IF(E178>3600,I179,IF(E178>60,H179,G179)) -> Seconds | G179: Seconds | H179: Minutes | I179: Hours
B184: Old fomulas | D184: AC | E184: Avg. network Latency
B185: Content | D185: AB | E185: # of Students
B186: $AC7+(($AB7*$W$2)*($K$2/($Q$2*$T$2))) | D186: W | E186: Estimated % of Students Starting the Test at the Exact Same Time
D187: X | E187: Estimated % of Students Processing Responses At Once (Think Time)
B188: Response | D188: K | E188: WBTE Size (Mbits)
B189: $AC120+(($AB120*$X$2)*($O$2/($R$2*$T$2))) | D189: O | E189: Response Size (Mbits)
D190: Q | E190: DownLoad Bandwidth (Mbps)
B191: Cat Response | E191: LAN
B192: $AC7+(($AB7*$X$2)*(($O$2+$P$2)/($R$2*$T$2)))+($G$2) | E192: WAN
E193: ISP
D194: R | E194: UpLoad Bandwidth (Mbps)
D195: G | E195: Avg CAT Scoring Process (secs)
D196: T | E196: Percent of Bandwidth Available for Testing

Sheet Capacity Estimator Table (hidden)
A1: Test Engine Size | B1: ="Fixed Form Test Size (" & 'Capacity Estimator'!M35 & ")" -> Fixed Form Test Size (MB) | C1: ="Fixed Form Response Size (" & 'Capacity Estimator'!P35 & ")" -> Fixed Form Response Size (KB) | D1: ="CAT Form Test Size (" & 'Capacity Estimator'!M37 & ")" -> CAT Form Test Size (KB) | E1: ="Avg CAT Item Size (" & 'Capacity Estimator'!S37 & ")" -> Avg CAT Item Size (KB) | F1: ="CAT Form Response Size (" & 'Capacity Estimator'!P37 & ")" -> CAT Form Response Size (KB) | G1: Avg CAT Scoring Process (secs) | H1: ="Accommodation Form Test Size (" & 'Capacity Estimator'!S37 & ")" -> Accommodation Form Test Size (KB) | I1: ="Avg Accommodation Item Size (" & 'Capacity Estimator'!V35 & ")" -> Avg Accommodation Item Size () | J1: ="Accommodation Form Response Size (" & 'Capacity Estimator'!T35 & ")" -> Accommodation Form Response Size () | K1: WBTE Size (Mbits) | L1: Fixed Form Test Size (Mbits) | M1: CAT Form Test Size (Mbits) | N1: Total Download of WBTE & Form (Mbits) | O1: ` | P1: ="Avg CAT Item Size (Mbits)" -> Avg CAT Item Size (Mbits) | Q1: DownLoad Bandwidth (Mbps) | R1: UpLoad Bandwidth (Mbps) | S1: Local Area Network (LAN) Connection Speed (Mbps) | T1: Percent of Bandwidth Available for Testing | U1: TSM Download Response Time Factor | V1: TSM Upload Response Time Factor | W1: Estimated % of Students Starting the Test at the Exact Same Time | X1: Estimated % of Students Processing Responses At Once (Think Time) | Y1: Internet Response Time/Latency (secs) | Z1: WAN Response Time/Latency (secs) | AA1: LAN Response Time/Latency (secs) | AB1: # of Students | AC1: Avg. Internet Latency | AD1: Avg LAN Latency | AF1: ="Avg Time to Download Test Engine" -> Avg Time to Download Test Engine | AI1: ="Avg Fixed Form Download without Content Hosting" -> Avg Fixed Form Download without Content Hosting | AK1: ="Avg Fixed Form Download with Content Hosting" -> Avg Fixed Form Download with Content Hosting | AM1: ="Avg Fixed Form Test and Test Engine Download Time with Content Hosting" -> Avg Fixed Form Test and Test Engine Download Time with Content Hosting | AP1: ="Avg Wait Between Fixed Form Items" -> Avg Wait Between Fixed Form Items | AR1: ="Avg Wait Time Between Items with Response Caching " -> Avg Wait Time Between Items with Response Caching | AT1: Item Latency w/o Response Caching | AW1: ="Avg CAT Form Download without Content Hosting" -> Avg CAT Form Download without Content Hosting | AY1: ="Avg CAT Form Download with Content Hosting" -> Avg CAT Form Download with Content Hosting | BB1: ="Avg Wait Between CAT Items" -> Avg Wait Between CAT Items | BE1: ="Average Time to Download WBTE without Hosting" -> Average Time to Download WBTE without Hosting | BG1: ="Max Wait Time without TSM (" & 'Capacity Estimator'!$AN$94 & " MB Test)" -> Max Wait Time without TSM ( MB Test) | BH1: ="Average Wait Time without TSM (" & 'Capacity Estimator'!$AN$94 & " MB Test)" -> Average Wait Time without TSM ( MB Test) | BI1: ="Max Wait Time with TSM (" & 'Capacity Estimator'!$AN$94 & " MB Test)" -> Max Wait Time with TSM ( MB Test) | BJ1: ="Average Wait Time with TSM (" & 'Capacity Estimator'!$AN$94 & " MB Test)" -> Average Wait Time with TSM ( MB Test)
A2: ='Capacity Estimator'!K41 -> 3.6 | B2: ='Capacity Estimator'!K35 -> 2 | C2: ='Capacity Estimator'!N35 -> 5 | D2: ='Capacity Estimator'!K37 -> 700 | E2: ='Capacity Estimator'!Q37 -> 25 | F2: ='Capacity Estimator'!N37 -> 5 | G2: 0.275 | H2: ='Capacity Estimator'!K39 -> 1 | I2: ='Capacity Estimator'!Q39 -> 1.5 | J2: ='Capacity Estimator'!N39 -> 5 | K2: =8*A5 -> 28.8 | L2: =(8*B5) -> 16 | M2: =(8*D5) -> 5.4687472 | N2: =L2+(K2*0) -> 16 | O2: =8*C5 -> 0.03906248 | P2: =E5 -> 0.02441405 | Q2: =MIN('Capacity Estimator'!D33, 'Capacity Estimator'!D35) -> 1000 | R2: =MIN('Capacity Estimator'!D33, 'Capacity Estimator'!D35) -> 1000 | S2: ='Capacity Estimator'!D35 -> 1000 | T2: ='Capacity Estimator'!D41/100 -> 0.008 | U2: 1 | V2: 1 | W2: ='Capacity Estimator'!D25 -> 0.3 | X2: ='Capacity Estimator'!D27 -> 0.1 | Y2: ='Capacity Estimator'!D45 -> 0.0117 | Z2: ='Capacity Estimator'!D47 -> 0.0023 | AA2: ='Capacity Estimator'!D49 -> 0.002 | AB2: 0 | AC2: 0 | AD2: 0 | AG2: =AC3 -> 0.0117 | AJ2: =AC3 -> 0.0117 | AK2: =$AB2*$L$2/$Q$2/$V$2 -> 0 | AM2: =AG2+AK2 -> 0.0117 | AP2: 0.05 | AR2: 0 | AT2: 0 | AX2: =AC3 -> 0.0117 | AY2: =$AB2*$L$2/$Q$2/$V$2 -> 0 | BB2: =(BB3+BC6)*0 -> 0
A3: ='Capacity Estimator'!M41 -> MB | B3: ='Capacity Estimator'!M35 -> MB | C3: ='Capacity Estimator'!P35 -> KB | D3: ='Capacity Estimator'!M37 -> KB | E3: ='Capacity Estimator'!S37 -> KB | F3: ='Capacity Estimator'!P37 -> KB | H3: ='Capacity Estimator'!M39 -> MB | I3: ='Capacity Estimator'!S39 -> MB | J3: ='Capacity Estimator'!P39 -> KB | Y3: 0 | Z3: 0 | AA3: 0 | AB3: =AB2+1 -> 1 | AC3: =IF($AB3<$Y$4,$Y$2,IF($Y$2-(AB3*$Y$3)>0,$Y$2-(AB3*$Y$3),0)) -> 0.0117 | AD3: =IF($AB3<$AA$4,$AA$2,IF($AA$2-($AB3*$AA$3)>0,$AA$2-($AB3*$AA$3),0)) -> 0.002 | AF3: =$AC3+(($AB3*$W$2)*$K$2/($Q$2*$T$2)) -> 1.0917 | AG3: =AG2-AF3 -> -1.08 | AI3: =$AC3+(($AB3*$W$2)*$L$2/($Q$2*$T$2)) -> 0.6117 | AJ3: =AJ2-AI3 -> -0.6 | AK3: =$AD3+(($AB3*$W$2)*$L$2/($S$2*$T$2)*$U$2) -> 0.602 | AL3: =AK2-AK3 -> -0.602 | AM3: =AF3+AK3 -> 1.6937 | AN3: =AM2-AM3 -> -1.682 | AP3: =$AC3+(($AB3*$X$2)*($O$2/($R$2*$T$2))) -> 0.012188281 | AQ3: =AP2-AP3 -> 0.037811719 | AR3: =$AD3+(($AB3*$X$2)*$O$2/($S$2*$T$2)*$V$2) -> 0.002488281 | AS3: =AR2-AR3 -> -0.002488281 | AT3: =AD3 -> 0.002 | AU3: =AT2-AT3 -> -0.002 | AW3: =$AC3+(($AB3*$W$2)*$M$2/($Q$2*$T$2)) -> 0.21677802 | AX3: =AX2-AW3 -> -0.20507802 | AY3: =$AD3+(($AB3*$W$2)*$M$2/($S$2*$T$2)*$U$2) -> 0.20707802 | AZ3: =AY2-AY3 -> -0.20707802 | BB3: =$AC3+(($AB3*$X$2)*(($O$2+$P$2)/($R$2*$T$2)))+($G$2*1) -> 0.2874934566 | BC3: =BB2-BB3 -> -0.2874934566
U4: 0.4 | V4: 0.4 | Y4: 0 | Z4: 0 | AA4: 0 | AB4: 2 | AC4: =IF($AB4<$Y$4,$Y$2,(IF(($AC3-$Y$3)>0,$AC3-$Y$3,0))) -> 0.0117 | AD4: =IF($AB4<$AA$4,$AA$2,(IF(($AD3-$AA$3)>0,$AD3-$AA$3,0))) -> 0.002 | AF4: =$AC4+(($AB4*$W$2)*$K$2/($Q$2*$T$2)) -> 2.1717 | AG4: =AF3-AF4 -> -1.08 | AI4: =$AC4+(($AB4*$W$2)*$L$2/($Q$2*$T$2)) -> 1.2117 | AJ4: =AI3-AI4 -> -0.6 | AK4: 1.202 | AL4: =AK3-AK4 -> -0.6 | AM4: 3.3737 | AN4: =AM3-AM4 -> -1.68 | AP4: =$AC4+(($AB4*$X$2)*($O$2/($R$2*$T$2))) -> 0.012676562 | AQ4: =AP3-AP4 -> -0.000488281 | AR4: 0.002976562 | AS4: =AR3-AR4 -> -0.000488281 | AT4: =AD4 -> 0.002 | AU4: =AT3-AT4 -> 0 | AW4: =$AC4+(($AB4*$W$2)*$M$2/($Q$2*$T$2)) -> 0.42185604 | AX4: =AW3-AW4 -> -0.20507802 | AY4: =$AD4+(($AB4*$W$2)*$M$2/($S$2*$T$2)*$U$2) -> 0.41215604 | AZ4: =AY3-AY4 -> -0.20507802 | BB4: =$AC4+(($AB4*$X$2)*(($O$2+$P$2)/($R$2*$T$2)))+($G$2*1) -> 0.2882869132 | BC4: =BB3-BB4 -> -0.000793456625
A5: =IF(A3="MB",A2,IF(A3="GB",A2*1024,A2*0.000976562)) -> 3.6 | B5: 2 | C5: 0.00488281 | D5: 0.6835934 | E5: 0.02441405 | F5: 0.00488281 | H5: =IF(H3="MB",H2,IF(H3="GB",H2*1024,H2*0.000976562)) -> 1 | I5: =IF(I3="MB",I2,IF(I3="GB",I2*1024,I2*0.000976562)) -> 1.5 | J5: =IF(J3="MB",J2,IF(J3="GB",J2*1024,J2*0.000976562)) -> 0.00488281 | O5: Size to use without Hosting (Download both WBTE Engine & Form from DRC) | AB5: 3 | AC5: =IF($AB5<$Y$4,$Y$2,(IF(($AC4-$Y$3)>0,$AC4-$Y$3,0))) -> 0.0117 | AD5: =IF($AB5<$AA$4,$AA$2,(IF(($AD4-$AA$3)>0,$AD4-$AA$3,0))) -> 0.002 | AF5: =$AC5+(($AB5*$W$2)*$K$2/($Q$2*$T$2)) -> 3.2517 | AG5: -1.08 | AI5: =$AC5+(($AB5*$W$2)*$L$2/($Q$2*$T$2)) -> 1.8117 | AJ5: =AI4-AI5 -> -0.6 | AK5: 1.802 | AL5: -0.6 | AM5: 5.0537 | AN5: -1.68 | AP5: 0.013164843 | AQ5: =AP4-AP5 -> -0.000488281 | AR5: 0.003464843 | AS5: -0.000488281 | AT5: 0.002 | AU5: 0 | AW5: =$AC5+(($AB5*$W$2)*$M$2/($Q$2*$T$2)) -> 0.62693406 | AX5: =AW4-AW5 -> -0.20507802 | AY5: 0.61723406 | AZ5: =AY4-AY5 -> -0.20507802 | BB5: 0.2890803699 | BC5: =BB4-BB5 -> -0.000793456625
A6: MB | B6: MB | C6: MB | D6: MB | E6: MB | F6: MB | H6: MB | I6: MB | J6: MB | N6: Use with Content Hosting for CAT form download from TSM | AB6: 4 | AC6: 0.0117 | AD6: 0.002 | AF6: 4.3317 | AG6: -1.08 | AI6: 2.4117 | AJ6: -0.6 | AK6: 2.402 | AL6: -0.6 | AM6: 6.7337 | AN6: -1.68 | AP6: 0.013653124 | AQ6: -0.000488281 | AR6: 0.003953124 | AS6: -0.000488281 | AT6: 0.002 | AU6: 0 | AW6: 0.83201208 | AX6: -0.20507802 | AY6: 0.82231208 | AZ6: -0.20507802 | BB6: 0.2898738265 | BC6: -0.000793456625
M7: Use with Content Hosting for Fixed form download from TSM | Y7: =Y2*1000 -> 11.7 | Z7: =Z2*1000 -> 2.3 | AA7: =AA2*1000 -> 2 | AB7: 5 | AC7: 0.0117 | AD7: 0.002 | AF7: 5.4117 | AG7: -1.08 | AI7: 3.0117 | AJ7: -0.6 | AK7: 3.002 | AL7: -0.6 | AM7: 8.4137 | AN7: -1.68 | AP7: 0.014141405 | AQ7: -0.000488281 | AR7: 0.004441405 | AS7: -0.000488281 | AT7: 0.002 | AU7: 0 | AW7: 1.0370901 | AX7: -0.20507802 | AY7: 1.0273901 | AZ7: -0.20507802 | BB7: 0.2906672831 | BC7: -0.000793456625
L8: Use with Hosting for WBTE Engine download from DRC | Y8: Milliseconds | Z8: Milliseconds | AA8: Milliseconds | AB8: 6 | AC8: 0.0117 | AD8: 0.002 | AF8: 6.4917 | AG8: -1.08 | AI8: 3.6117 | AJ8: -0.6 | AK8: 3.602 | AL8: -0.6 | AM8: 10.0937 | AN8: -1.68 | AP8: 0.014629686 | AQ8: -0.000488281 | AR8: 0.004929686 | AS8: -0.000488281 | AT8: 0.002 | AU8: 0 | AW8: 1.24216812 | AX8: -0.20507802 | AY8: 1.23246812 | AZ8: -0.20507802 | BB8: 0.2914607398 | BC8: -0.000793456625
A9: T1 | B9: 1.544 | C9: Mbits/sec | F9: Mbits/sec | J9: Mbits/sec | AB9: 7 | AC9: 0.0117 | AD9: 0.002 | AF9: 7.5717 | AG9: -1.08 | AI9: 4.2117 | AJ9: -0.6 | AK9: 4.202 | AL9: -0.6 | AM9: 11.7737 | AN9: -1.68 | AP9: 0.015117967 | AQ9: -0.000488281 | AR9: 0.005417967 | AS9: -0.000488281 | AT9: 0.002 | AU9: 0 | AW9: 1.44724614 | AX9: -0.20507802 | AY9: 1.43754614 | AZ9: -0.20507802 | BB9: 0.2922541964 | BC9: -0.000793456625
A10: T2 | B10: 6.312 | C10: Mbits/sec | F10: Mbits/sec | J10: Mbits/sec | S10: Minimum of upload Speed and LAN Speed | AB10: 8 | AC10: 0.0117 | AD10: 0.002 | AF10: 8.6517 | AG10: -1.08 | AI10: 4.8117 | AJ10: -0.6 | AK10: 4.802 | AL10: -0.6 | AM10: 13.4537 | AN10: -1.68 | AP10: 0.015606248 | AQ10: -0.000488281 | AR10: =$AD10+(($AB10*$X$2)*$O$2/($S$2*$T$2)*$V$2) -> 0.005906248 | AS10: -0.000488281 | AT10: 0.002 | AU10: 0 | AW10: 1.65232416 | AX10: -0.20507802 | AY10: 1.64262416 | AZ10: -0.20507802 | BB10: 0.293047653 | BC10: -0.000793456625
A11: T3 | B11: 44.736 | C11: Mbits/sec | F11: Mbits/sec | J11: Mbits/sec | AB11: 9 | AC11: 0.0117 | AD11: 0.002 | AF11: 9.7317 | AG11: -1.08 | AI11: 5.4117 | AJ11: -0.6 | AK11: 5.402 | AL11: -0.6 | AM11: 15.1337 | AN11: -1.68 | AP11: 0.016094529 | AQ11: -0.000488281 | AR11: 0.006394529 | AS11: -0.000488281 | AT11: 0.002 | AU11: 0 | AW11: 1.85740218 | AX11: -0.20507802 | AY11: 1.84770218 | AZ11: -0.20507802 | BB11: 0.2938411096 | BC11: -0.000793456625
R12: Minimum of Download Speed and LAN Speed | AB12: 10 | AC12: 0.0117 | AD12: 0.002 | AF12: 10.8117 | AG12: -1.08 | AI12: 6.0117 | AJ12: -0.6 | AK12: 6.002 | AL12: -0.6 | AM12: 16.8137 | AN12: -1.68 | AP12: 0.01658281 | AQ12: -0.000488281 | AR12: 0.00688281 | AS12: -0.000488281 | AT12: 0.002 | AU12: 0 | AW12: 2.0624802 | AX12: -0.20507802 | AY12: 2.0527802 | AZ12: -0.20507802 | BB12: 0.2946345663 | BC12: -0.000793456625
AB13: 11 | AC13: 0.0117 | AD13: 0.002 | AF13: 11.8917 | AG13: -1.08 | AI13: 6.6117 | AJ13: -0.6 | AK13: 6.602 | AL13: -0.6 | AM13: 18.4937 | AN13: -1.68 | AP13: 0.017071091 | AQ13: -0.000488281 | AR13: 0.007371091 | AS13: -0.000488281 | AT13: 0.002 | AU13: 0 | AW13: 2.26755822 | AX13: -0.20507802 | AY13: 2.25785822 | AZ13: -0.20507802 | BB13: 0.2954280229 | BC13: -0.000793456625
AB14: 12 | AC14: 0.0117 | AD14: 0.002 | AF14: 12.9717 | AG14: -1.08 | AI14: 7.2117 | AJ14: -0.6 | AK14: 7.202 | AL14: -0.6 | AM14: 20.1737 | AN14: -1.68 | AP14: 0.017559372 | AQ14: -0.000488281 | AR14: 0.007859372 | AS14: -0.000488281 | AT14: 0.002 | AU14: 0 | AW14: 2.47263624 | AX14: -0.20507802 | AY14: 2.46293624 | AZ14: -0.20507802 | BB14: 0.2962214795 | BC14: -0.000793456625
AB15: 13 | AC15: 0.0117 | AD15: 0.002 | AF15: 14.0517 | AG15: -1.08 | AI15: 7.8117 | AJ15: -0.6 | AK15: 7.802 | AL15: -0.6 | AM15: 21.8537 | AN15: -1.68 | AP15: 0.018047653 | AQ15: -0.000488281 | AR15: 0.008347653 | AS15: -0.000488281 | AT15: 0.002 | AU15: 0 | AW15: 2.67771426 | AX15: -0.20507802 | AY15: 2.66801426 | AZ15: -0.20507802 | BB15: 0.2970149361 | BC15: -0.000793456625
AB16: 14 | AC16: 0.0117 | AD16: 0.002 | AF16: 15.1317 | AG16: -1.08 | AI16: 8.4117 | AJ16: -0.6 | AK16: 8.402 | AL16: -0.6 | AM16: 23.5337 | AN16: -1.68 | AP16: 0.018535934 | AQ16: -0.000488281 | AR16: 0.008835934 | AS16: -0.000488281 | AT16: 0.002 | AU16: 0 | AW16: 2.88279228 | AX16: -0.20507802 | AY16: 2.87309228 | AZ16: -0.20507802 | BB16: 0.2978083928 | BC16: -0.000793456625
AB17: 15 | AC17: 0.0117 | AD17: 0.002 | AF17: 16.2117 | AG17: -1.08 | AI17: 9.0117 | AJ17: -0.6 | AK17: 9.002 | AL17: -0.6 | AM17: 25.2137 | AN17: -1.68 | AP17: 0.019024215 | AQ17: -0.000488281 | AR17: 0.009324215 | AS17: -0.000488281 | AT17: 0.002 | AU17: 0 | AW17: 3.0878703 | AX17: -0.20507802 | AY17: 3.0781703 | AZ17: -0.20507802 | BB17: 0.2986018494 | BC17: -0.000793456625
AB18: 16 | AC18: 0.0117 | AD18: 0.002 | AF18: 17.2917 | AG18: -1.08 | AI18: 9.6117 | AJ18: -0.6 | AK18: 9.602 | AL18: -0.6 | AM18: 26.8937 | AN18: -1.68 | AP18: 0.019512496 | AQ18: -0.000488281 | AR18: 0.009812496 | AS18: -0.000488281 | AT18: 0.002 | AU18: 0 | AW18: 3.29294832 | AX18: -0.20507802 | AY18: 3.28324832 | AZ18: -0.20507802 | BB18: 0.299395306 | BC18: -0.000793456625
AB19: 17 | AC19: 0.0117 | AD19: 0.002 | AF19: 18.3717 | AG19: -1.08 | AI19: 10.2117 | AJ19: -0.6 | AK19: 10.202 | AL19: -0.6 | AM19: 28.5737 | AN19: -1.68 | AP19: 0.020000777 | AQ19: -0.000488281 | AR19: 0.010300777 | AS19: -0.000488281 | AT19: 0.002 | AU19: 0 | AW19: 3.49802634 | AX19: -0.20507802 | AY19: 3.48832634 | AZ19: -0.20507802 | BB19: 0.3001887626 | BC19: -0.000793456625
AB20: 18 | AC20: 0.0117 | AD20: 0.002 | AF20: 19.4517 | AG20: -1.08 | AI20: 10.8117 | AJ20: -0.6 | AK20: 10.802 | AL20: -0.6 | AM20: 30.2537 | AN20: -1.68 | AP20: 0.020489058 | AQ20: -0.000488281 | AR20: 0.010789058 | AS20: -0.000488281 | AT20: 0.002 | AU20: 0 | AW20: 3.70310436 | AX20: -0.20507802 | AY20: 3.69340436 | AZ20: -0.20507802 | BB20: 0.3009822193 | BC20: -0.000793456625
AB21: 19 | AC21: 0.0117 | AD21: 0.002 | AF21: 20.5317 | AG21: -1.08 | AI21: 11.4117 | AJ21: -0.6 | AK21: 11.402 | AL21: -0.6 | AM21: 31.9337 | AN21: -1.68 | AP21: 0.020977339 | AQ21: -0.000488281 | AR21: 0.011277339 | AS21: -0.000488281 | AT21: 0.002 | AU21: 0 | AW21: 3.90818238 | AX21: -0.20507802 | AY21: 3.89848238 | AZ21: -0.20507802 | BB21: 0.3017756759 | BC21: -0.000793456625
AB22: 20 | AC22: 0.0117 | AD22: 0.002 | AF22: 21.6117 | AG22: -1.08 | AI22: 12.0117 | AJ22: -0.6 | AK22: 12.002 | AL22: -0.6 | AM22: 33.6137 | AN22: -1.68 | AP22: 0.02146562 | AQ22: -0.000488281 | AR22: 0.01176562 | AS22: -0.000488281 | AT22: 0.002 | AU22: 0 | AW22: 4.1132604 | AX22: -0.20507802 | AY22: 4.1035604 | AZ22: -0.20507802 | BB22: 0.3025691325 | BC22: -0.000793456625
AB23: 21 | AC23: 0.0117 | AD23: 0.002 | AF23: 22.6917 | AG23: -1.08 | AI23: 12.6117 | AJ23: -0.6 | AK23: 12.602 | AL23: -0.6 | AM23: 35.2937 | AN23: -1.68 | AP23: 0.021953901 | AQ23: -0.000488281 | AR23: 0.012253901 | AS23: -0.000488281 | AT23: 0.002 | AU23: 0 | AW23: 4.31833842 | AX23: -0.20507802 | AY23: 4.30863842 | AZ23: -0.20507802 | BB23: 0.3033625891 | BC23: -0.000793456625
AB24: 22 | AC24: 0.0117 | AD24: 0.002 | AF24: 23.7717 | AG24: -1.08 | AI24: 13.2117 | AJ24: -0.6 | AK24: 13.202 | AL24: -0.6 | AM24: 36.9737 | AN24: -1.68 | AP24: 0.022442182 | AQ24: -0.000488281 | AR24: 0.012742182 | AS24: -0.000488281 | AT24: 0.002 | AU24: 0 | AW24: 4.52341644 | AX24: -0.20507802 | AY24: 4.51371644 | AZ24: -0.20507802 | BB24: 0.3041560458 | BC24: -0.000793456625
AB25: 23 | AC25: 0.0117 | AD25: 0.002 | AF25: 24.8517 | AG25: -1.08 | AI25: 13.8117 | AJ25: -0.6 | AK25: 13.802 | AL25: -0.6 | AM25: 38.6537 | AN25: -1.68 | AP25: 0.022930463 | AQ25: -0.000488281 | AR25: 0.013230463 | AS25: -0.000488281 | AT25: 0.002 | AU25: 0 | AW25: 4.72849446 | AX25: -0.20507802 | AY25: 4.71879446 | AZ25: -0.20507802 | BB25: 0.3049495024 | BC25: -0.000793456625
AB26: 24 | AC26: 0.0117 | AD26: 0.002 | AF26: 25.9317 | AG26: -1.08 | AI26: 14.4117 | AJ26: -0.6 | AK26: 14.402 | AL26: -0.6 | AM26: 40.3337 | AN26: -1.68 | AP26: 0.023418744 | AQ26: -0.000488281 | AR26: 0.013718744 | AS26: -0.000488281 | AT26: 0.002 | AU26: 0 | AW26: 4.93357248 | AX26: -0.20507802 | AY26: 4.92387248 | AZ26: -0.20507802 | BB26: 0.305742959 | BC26: -0.000793456625
AB27: 25 | AC27: 0.0117 | AD27: 0.002 | AF27: 27.0117 | AG27: -1.08 | AI27: 15.0117 | AJ27: -0.6 | AK27: 15.002 | AL27: -0.6 | AM27: 42.0137 | AN27: -1.68 | AP27: 0.023907025 | AQ27: -0.000488281 | AR27: 0.014207025 | AS27: -0.000488281 | AT27: 0.002 | AU27: 0 | AW27: 5.1386505 | AX27: -0.20507802 | AY27: 5.1289505 | AZ27: -0.20507802 | BB27: 0.3065364156 | BC27: -0.000793456625
AB28: 26 | AC28: 0.0117 | AD28: 0.002 | AF28: 28.0917 | AG28: -1.08 | AI28: 15.6117 | AJ28: -0.6 | AK28: 15.602 | AL28: -0.6 | AM28: 43.6937 | AN28: -1.68 | AP28: 0.024395306 | AQ28: -0.000488281 | AR28: 0.014695306 | AS28: -0.000488281 | AT28: 0.002 | AU28: 0 | AW28: 5.34372852 | AX28: -0.20507802 | AY28: 5.33402852 | AZ28: -0.20507802 | BB28: 0.3073298723 | BC28: -0.000793456625
AB29: 27 | AC29: 0.0117 | AD29: 0.002 | AF29: 29.1717 | AG29: -1.08 | AI29: 16.2117 | AJ29: -0.6 | AK29: 16.202 | AL29: -0.6 | AM29: 45.3737 | AN29: -1.68 | AP29: 0.024883587 | AQ29: -0.000488281 | AR29: 0.015183587 | AS29: -0.000488281 | AT29: 0.002 | AU29: 0 | AW29: 5.54880654 | AX29: -0.20507802 | AY29: 5.53910654 | AZ29: -0.20507802 | BB29: 0.3081233289 | BC29: -0.000793456625
AB30: 28 | AC30: 0.0117 | AD30: 0.002 | AF30: 30.2517 | AG30: -1.08 | AI30: 16.8117 | AJ30: -0.6 | AK30: 16.802 | AL30: -0.6 | AM30: 47.0537 | AN30: -1.68 | AP30: 0.025371868 | AQ30: -0.000488281 | AR30: 0.015671868 | AS30: -0.000488281 | AT30: 0.002 | AU30: 0 | AW30: 5.75388456 | AX30: -0.20507802 | AY30: 5.74418456 | AZ30: -0.20507802 | BB30: 0.3089167855 | BC30: -0.000793456625
AB31: =AB30+1 -> 29 | AC31: =IF($AB31<$Y$4,$Y$2,(IF(($AC30-$Y$3)>0,$AC30-$Y$3,0))) -> 0.0117 | AD31: =IF($AB31<$AA$4,$AA$2,(IF(($AD30-$AA$3)>0,$AD30-$AA$3,0))) -> 0.002 | AF31: 31.3317 | AG31: =AF30-AF31 -> -1.08 | AI31: 17.4117 | AJ31: =AI30-AI31 -> -0.6 | AK31: 17.402 | AL31: =AK30-AK31 -> -0.6 | AM31: 48.7337 | AN31: =AM30-AM31 -> -1.68 | AP31: 0.025860149 | AQ31: =AP30-AP31 -> -0.000488281 | AR31: 0.016160149 | AS31: =AR30-AR31 -> -0.000488281 | AT31: 0.002 | AU31: =AT30-AT31 -> 0 | AW31: 5.95896258 | AX31: =AW30-AW31 -> -0.20507802 | AY31: 5.94926258 | AZ31: =AY30-AY31 -> -0.20507802 | BB31: 0.3097102421 | BC31: =BB30-BB31 -> -0.000793456625
AB32: 30 | AC32: 0.0117 | AD32: 0.002 | AF32: 32.4117 | AG32: -1.08 | AI32: 18.0117 | AJ32: -0.6 | AK32: 18.002 | AL32: -0.6 | AM32: 50.4137 | AN32: -1.68 | AP32: 0.02634843 | AQ32: -0.000488281 | AR32: 0.01664843 | AS32: -0.000488281 | AT32: 0.002 | AU32: 0 | AW32: 6.1640406 | AX32: -0.20507802 | AY32: 6.1543406 | AZ32: -0.20507802 | BB32: 0.3105036988 | BC32: -0.000793456625
AB33: 31 | AC33: 0.0117 | AD33: 0.002 | AF33: 33.4917 | AG33: -1.08 | AI33: 18.6117 | AJ33: -0.6 | AK33: 18.602 | AL33: -0.6 | AM33: 52.0937 | AN33: -1.68 | AP33: 0.026836711 | AQ33: -0.000488281 | AR33: 0.017136711 | AS33: -0.000488281 | AT33: 0.002 | AU33: 0 | AW33: 6.36911862 | AX33: -0.20507802 | AY33: 6.35941862 | AZ33: -0.20507802 | BB33: 0.3112971554 | BC33: -0.000793456625
AB34: 32 | AC34: 0.0117 | AD34: 0.002 | AF34: 34.5717 | AG34: -1.08 | AI34: 19.2117 | AJ34: -0.6 | AK34: 19.202 | AL34: -0.6 | AM34: 53.7737 | AN34: -1.68 | AP34: 0.027324992 | AQ34: -0.000488281 | AR34: 0.017624992 | AS34: -0.000488281 | AT34: 0.002 | AU34: 0 | AW34: 6.57419664 | AX34: -0.20507802 | AY34: 6.56449664 | AZ34: -0.20507802 | BB34: 0.312090612 | BC34: -0.000793456625
AB35: 33 | AC35: 0.0117 | AD35: 0.002 | AF35: 35.6517 | AG35: -1.08 | AI35: 19.8117 | AJ35: -0.6 | AK35: 19.802 | AL35: -0.6 | AM35: 55.4537 | AN35: -1.68 | AP35: 0.027813273 | AQ35: -0.000488281 | AR35: 0.018113273 | AS35: -0.000488281 | AT35: 0.002 | AU35: 0 | AW35: 6.77927466 | AX35: -0.20507802 | AY35: 6.76957466 | AZ35: -0.20507802 | BB35: 0.3128840686 | BC35: -0.000793456625
AB36: 34 | AC36: 0.0117 | AD36: 0.002 | AF36: 36.7317 | AG36: -1.08 | AI36: 20.4117 | AJ36: -0.6 | AK36: 20.402 | AL36: -0.6 | AM36: 57.1337 | AN36: -1.68 | AP36: 0.028301554 | AQ36: -0.000488281 | AR36: 0.018601554 | AS36: -0.000488281 | AT36: 0.002 | AU36: 0 | AW36: 6.98435268 | AX36: -0.20507802 | AY36: 6.97465268 | AZ36: -0.20507802 | BB36: 0.3136775253 | BC36: -0.000793456625
AB37: 35 | AC37: 0.0117 | AD37: 0.002 | AF37: 37.8117 | AG37: -1.08 | AI37: 21.0117 | AJ37: -0.6 | AK37: 21.002 | AL37: -0.6 | AM37: 58.8137 | AN37: -1.68 | AP37: 0.028789835 | AQ37: -0.000488281 | AR37: 0.019089835 | AS37: -0.000488281 | AT37: 0.002 | AU37: 0 | AW37: 7.1894307 | AX37: -0.20507802 | AY37: 7.1797307 | AZ37: -0.20507802 | BB37: 0.3144709819 | BC37: -0.000793456625
AB38: 36 | AC38: 0.0117 | AD38: 0.002 | AF38: 38.8917 | AG38: -1.08 | AI38: 21.6117 | AJ38: -0.6 | AK38: 21.602 | AL38: -0.6 | AM38: 60.4937 | AN38: -1.68 | AP38: 0.029278116 | AQ38: -0.000488281 | AR38: 0.019578116 | AS38: -0.000488281 | AT38: 0.002 | AU38: 0 | AW38: 7.39450872 | AX38: -0.20507802 | AY38: 7.38480872 | AZ38: -0.20507802 | BB38: 0.3152644385 | BC38: -0.000793456625
AB39: 37 | AC39: 0.0117 | AD39: 0.002 | AF39: 39.9717 | AG39: -1.08 | AI39: 22.2117 | AJ39: -0.6 | AK39: 22.202 | AL39: -0.6 | AM39: 62.1737 | AN39: -1.68 | AP39: 0.029766397 | AQ39: -0.000488281 | AR39: 0.020066397 | AS39: -0.000488281 | AT39: 0.002 | AU39: 0 | AW39: 7.59958674 | AX39: -0.20507802 | AY39: 7.58988674 | AZ39: -0.20507802 | BB39: 0.3160578951 | BC39: -0.000793456625
AB40: 38 | AC40: 0.0117 | AD40: 0.002 | AF40: 41.0517 | AG40: -1.08 | AI40: 22.8117 | AJ40: -0.6 | AK40: 22.802 | AL40: -0.6 | AM40: 63.8537 | AN40: -1.68 | AP40: 0.030254678 | AQ40: -0.000488281 | AR40: 0.020554678 | AS40: -0.000488281 | AT40: 0.002 | AU40: 0 | AW40: 7.80466476 | AX40: -0.20507802 | AY40: 7.79496476 | AZ40: -0.20507802 | BB40: 0.3168513518 | BC40: -0.000793456625
AB41: 39 | AC41: 0.0117 | AD41: 0.002 | AF41: 42.1317 | AG41: -1.08 | AI41: 23.4117 | AJ41: -0.6 | AK41: 23.402 | AL41: -0.6 | AM41: 65.5337 | AN41: -1.68 | AP41: 0.030742959 | AQ41: -0.000488281 | AR41: 0.021042959 | AS41: -0.000488281 | AT41: 0.002 | AU41: 0 | AW41: 8.00974278 | AX41: -0.20507802 | AY41: 8.00004278 | AZ41: -0.20507802 | BB41: 0.3176448084 | BC41: -0.000793456625
AB42: 40 | AC42: 0.0117 | AD42: 0.002 | AF42: 43.2117 | AG42: -1.08 | AI42: 24.0117 | AJ42: -0.6 | AK42: 24.002 | AL42: -0.6 | AM42: 67.2137 | AN42: -1.68 | AP42: 0.03123124 | AQ42: -0.000488281 | AR42: 0.02153124 | AS42: -0.000488281 | AT42: 0.002 | AU42: 0 | AW42: 8.2148208 | AX42: -0.20507802 | AY42: 8.2051208 | AZ42: -0.20507802 | BB42: 0.318438265 | BC42: -0.000793456625
AB43: 41 | AC43: 0.0117 | AD43: 0.002 | AF43: 44.2917 | AG43: -1.08 | AI43: 24.6117 | AJ43: -0.6 | AK43: 24.602 | AL43: -0.6 | AM43: 68.8937 | AN43: -1.68 | AP43: 0.031719521 | AQ43: -0.000488281 | AR43: 0.022019521 | AS43: -0.000488281 | AT43: 0.002 | AU43: 0 | AW43: 8.41989882 | AX43: -0.20507802 | AY43: 8.41019882 | AZ43: -0.20507802 | BB43: 0.3192317216 | BC43: -0.000793456625
AB44: 42 | AC44: 0.0117 | AD44: 0.002 | AF44: 45.3717 | AG44: -1.08 | AI44: 25.2117 | AJ44: -0.6 | AK44: 25.202 | AL44: -0.6 | AM44: 70.5737 | AN44: -1.68 | AP44: 0.032207802 | AQ44: -0.000488281 | AR44: 0.022507802 | AS44: -0.000488281 | AT44: 0.002 | AU44: 0 | AW44: 8.62497684 | AX44: -0.20507802 | AY44: 8.61527684 | AZ44: -0.20507802 | BB44: 0.3200251783 | BC44: -0.000793456625
AB45: 43 | AC45: 0.0117 | AD45: 0.002 | AF45: 46.4517 | AG45: -1.08 | AI45: 25.8117 | AJ45: -0.6 | AK45: 25.802 | AL45: -0.6 | AM45: 72.2537 | AN45: -1.68 | AP45: 0.032696083 | AQ45: -0.000488281 | AR45: 0.022996083 | AS45: -0.000488281 | AT45: 0.002 | AU45: 0 | AW45: 8.83005486 | AX45: -0.20507802 | AY45: 8.82035486 | AZ45: -0.20507802 | BB45: 0.3208186349 | BC45: -0.000793456625
AB46: 44 | AC46: 0.0117 | AD46: 0.002 | AF46: 47.5317 | AG46: -1.08 | AI46: 26.4117 | AJ46: -0.6 | AK46: 26.402 | AL46: -0.6 | AM46: 73.9337 | AN46: -1.68 | AP46: 0.033184364 | AQ46: -0.000488281 | AR46: 0.023484364 | AS46: -0.000488281 | AT46: 0.002 | AU46: 0 | AW46: 9.03513288 | AX46: -0.20507802 | AY46: 9.02543288 | AZ46: -0.20507802 | BB46: 0.3216120915 | BC46: -0.000793456625
AB47: 45 | AC47: 0.0117 | AD47: 0.002 | AF47: 48.6117 | AG47: -1.08 | AI47: 27.0117 | AJ47: -0.6 | AK47: 27.002 | AL47: -0.6 | AM47: 75.6137 | AN47: -1.68 | AP47: 0.033672645 | AQ47: -0.000488281 | AR47: 0.023972645 | AS47: -0.000488281 | AT47: 0.002 | AU47: 0 | AW47: 9.2402109 | AX47: -0.20507802 | AY47: 9.2305109 | AZ47: -0.20507802 | BB47: 0.3224055481 | BC47: -0.000793456625
AB48: 46 | AC48: 0.0117 | AD48: 0.002 | AF48: 49.6917 | AG48: -1.08 | AI48: 27.6117 | AJ48: -0.6 | AK48: 27.602 | AL48: -0.6 | AM48: 77.2937 | AN48: -1.68 | AP48: 0.034160926 | AQ48: -0.000488281 | AR48: 0.024460926 | AS48: -0.000488281 | AT48: 0.002 | AU48: 0 | AW48: 9.44528892 | AX48: -0.20507802 | AY48: 9.43558892 | AZ48: -0.20507802 | BB48: 0.3231990048 | BC48: -0.000793456625
AB49: 47 | AC49: 0.0117 | AD49: 0.002 | AF49: 50.7717 | AG49: -1.08 | AI49: 28.2117 | AJ49: -0.6 | AK49: 28.202 | AL49: -0.6 | AM49: 78.9737 | AN49: -1.68 | AP49: 0.034649207 | AQ49: -0.000488281 | AR49: 0.024949207 | AS49: -0.000488281 | AT49: 0.002 | AU49: 0 | AW49: 9.65036694 | AX49: -0.20507802 | AY49: 9.64066694 | AZ49: -0.20507802 | BB49: 0.3239924614 | BC49: -0.000793456625
AB50: 48 | AC50: 0.0117 | AD50: 0.002 | AF50: 51.8517 | AG50: -1.08 | AI50: 28.8117 | AJ50: -0.6 | AK50: 28.802 | AL50: -0.6 | AM50: 80.6537 | AN50: -1.68 | AP50: 0.035137488 | AQ50: -0.000488281 | AR50: 0.025437488 | AS50: -0.000488281 | AT50: 0.002 | AU50: 0 | AW50: 9.85544496 | AX50: -0.20507802 | AY50: 9.84574496 | AZ50: -0.20507802 | BB50: 0.324785918 | BC50: -0.000793456625
AB51: 49 | AC51: 0.0117 | AD51: 0.002 | AF51: 52.9317 | AG51: -1.08 | AI51: 29.4117 | AJ51: -0.6 | AK51: 29.402 | AL51: -0.6 | AM51: 82.3337 | AN51: -1.68 | AP51: 0.035625769 | AQ51: -0.000488281 | AR51: 0.025925769 | AS51: -0.000488281 | AT51: 0.002 | AU51: 0 | AW51: 10.06052298 | AX51: -0.20507802 | AY51: 10.05082298 | AZ51: -0.20507802 | BB51: 0.3255793746 | BC51: -0.000793456625
AB52: 50 | AC52: 0.0117 | AD52: 0.002 | AF52: 54.0117 | AG52: -1.08 | AI52: 30.0117 | AJ52: -0.6 | AK52: 30.002 | AL52: -0.6 | AM52: 84.0137 | AN52: -1.68 | AP52: 0.03611405 | AQ52: -0.000488281 | AR52: 0.02641405 | AS52: -0.000488281 | AT52: 0.002 | AU52: 0 | AW52: 10.265601 | AX52: -0.20507802 | AY52: 10.255901 | AZ52: -0.20507802 | BB52: 0.3263728313 | BC52: -0.000793456625
AB53: 51 | AC53: 0.0117 | AD53: 0.002 | AF53: 55.0917 | AG53: -1.08 | AI53: 30.6117 | AJ53: -0.6 | AK53: 30.602 | AL53: -0.6 | AM53: 85.6937 | AN53: -1.68 | AP53: 0.036602331 | AQ53: -0.000488281 | AR53: 0.026902331 | AS53: -0.000488281 | AT53: 0.002 | AU53: 0 | AW53: 10.47067902 | AX53: -0.20507802 | AY53: 10.46097902 | AZ53: -0.20507802 | BB53: 0.3271662879 | BC53: -0.000793456625
AB54: 52 | AC54: 0.0117 | AD54: 0.002 | AF54: 56.1717 | AG54: -1.08 | AI54: 31.2117 | AJ54: -0.6 | AK54: 31.202 | AL54: -0.6 | AM54: 87.3737 | AN54: -1.68 | AP54: 0.037090612 | AQ54: -0.000488281 | AR54: 0.027390612 | AS54: -0.000488281 | AT54: 0.002 | AU54: 0 | AW54: 10.67575704 | AX54: -0.20507802 | AY54: 10.66605704 | AZ54: -0.20507802 | BB54: 0.3279597445 | BC54: -0.000793456625
AB55: 53 | AC55: 0.0117 | AD55: 0.002 | AF55: 57.2517 | AG55: -1.08 | AI55: 31.8117 | AJ55: -0.6 | AK55: 31.802 | AL55: -0.6 | AM55: 89.0537 | AN55: -1.68 | AP55: 0.037578893 | AQ55: -0.000488281 | AR55: 0.027878893 | AS55: -0.000488281 | AT55: 0.002 | AU55: 0 | AW55: 10.88083506 | AX55: -0.20507802 | AY55: 10.87113506 | AZ55: -0.20507802 | BB55: 0.3287532011 | BC55: -0.000793456625
AB56: 54 | AC56: 0.0117 | AD56: 0.002 | AF56: 58.3317 | AG56: -1.08 | AI56: 32.4117 | AJ56: -0.6 | AK56: 32.402 | AL56: -0.6 | AM56: 90.7337 | AN56: -1.68 | AP56: 0.038067174 | AQ56: -0.000488281 | AR56: 0.028367174 | AS56: -0.000488281 | AT56: 0.002 | AU56: 0 | AW56: 11.08591308 | AX56: -0.20507802 | AY56: 11.07621308 | AZ56: -0.20507802 | BB56: 0.3295466578 | BC56: -0.000793456625
AB57: 55 | AC57: 0.0117 | AD57: 0.002 | AF57: 59.4117 | AG57: -1.08 | AI57: 33.0117 | AJ57: -0.6 | AK57: 33.002 | AL57: -0.6 | AM57: 92.4137 | AN57: -1.68 | AP57: 0.038555455 | AQ57: -0.000488281 | AR57: 0.028855455 | AS57: -0.000488281 | AT57: 0.002 | AU57: 0 | AW57: 11.2909911 | AX57: -0.20507802 | AY57: 11.2812911 | AZ57: -0.20507802 | BB57: 0.3303401144 | BC57: -0.000793456625
AB58: =AB57+1 -> 56 | AC58: =IF($AB58<$Y$4,$Y$2,(IF(($AC57-$Y$3)>0,$AC57-$Y$3,0))) -> 0.0117 | AD58: =IF($AB58<$AA$4,$AA$2,(IF(($AD57-$AA$3)>0,$AD57-$AA$3,0))) -> 0.002 | AF58: 60.4917 | AG58: =AF57-AF58 -> -1.08 | AI58: 33.6117 | AJ58: =AI57-AI58 -> -0.6 | AK58: 33.602 | AL58: =AK57-AK58 -> -0.6 | AM58: 94.0937 | AN58: =AM57-AM58 -> -1.68 | AP58: 0.039043736 | AQ58: =AP57-AP58 -> -0.000488281 | AR58: 0.029343736 | AS58: =AR57-AR58 -> -0.000488281 | AT58: 0.002 | AU58: =AT57-AT58 -> 0 | AW58: 11.49606912 | AX58: =AW57-AW58 -> -0.20507802 | AY58: 11.48636912 | AZ58: =AY57-AY58 -> -0.20507802 | BB58: 0.331133571 | BC58: =BB57-BB58 -> -0.000793456625
AB59: 57 | AC59: 0.0117 | AD59: 0.002 | AF59: 61.5717 | AG59: -1.08 | AI59: 34.2117 | AJ59: -0.6 | AK59: 34.202 | AL59: -0.6 | AM59: 95.7737 | AN59: -1.68 | AP59: 0.039532017 | AQ59: -0.000488281 | AR59: 0.029832017 | AS59: -0.000488281 | AT59: 0.002 | AU59: 0 | AW59: 11.70114714 | AX59: -0.20507802 | AY59: 11.69144714 | AZ59: -0.20507802 | BB59: 0.3319270276 | BC59: -0.000793456625
AB60: 58 | AC60: 0.0117 | AD60: 0.002 | AF60: 62.6517 | AG60: -1.08 | AI60: 34.8117 | AJ60: -0.6 | AK60: 34.802 | AL60: -0.6 | AM60: 97.4537 | AN60: -1.68 | AP60: 0.040020298 | AQ60: -0.000488281 | AR60: 0.030320298 | AS60: -0.000488281 | AT60: 0.002 | AU60: 0 | AW60: 11.90622516 | AX60: -0.20507802 | AY60: 11.89652516 | AZ60: -0.20507802 | BB60: 0.3327204843 | BC60: -0.000793456625
AB61: 59 | AC61: 0.0117 | AD61: 0.002 | AF61: 63.7317 | AG61: -1.08 | AI61: 35.4117 | AJ61: -0.6 | AK61: 35.402 | AL61: -0.6 | AM61: 99.1337 | AN61: -1.68 | AP61: 0.040508579 | AQ61: -0.000488281 | AR61: 0.030808579 | AS61: -0.000488281 | AT61: 0.002 | AU61: 0 | AW61: 12.11130318 | AX61: -0.20507802 | AY61: 12.10160318 | AZ61: -0.20507802 | BB61: 0.3335139409 | BC61: -0.000793456625
AB62: 60 | AC62: 0.0117 | AD62: 0.002 | AF62: 64.8117 | AG62: -1.08 | AI62: 36.0117 | AJ62: -0.6 | AK62: 36.002 | AL62: -0.6 | AM62: 100.8137 | AN62: -1.68 | AP62: 0.04099686 | AQ62: -0.000488281 | AR62: 0.03129686 | AS62: -0.000488281 | AT62: 0.002 | AU62: 0 | AW62: 12.3163812 | AX62: -0.20507802 | AY62: 12.3066812 | AZ62: -0.20507802 | BB62: 0.3343073975 | BC62: -0.000793456625
AB63: =AB62+1 -> 61 | AC63: =IF($AB63<$Y$4,$Y$2,(IF(($AC62-$Y$3)>0,$AC62-$Y$3,0))) -> 0.0117 | AD63: =IF($AB63<$AA$4,$AA$2,(IF(($AD62-$AA$3)>0,$AD62-$AA$3,0))) -> 0.002 | AF63: 65.8917 | AG63: =AF62-AF63 -> -1.08 | AI63: 36.6117 | AJ63: =AI62-AI63 -> -0.6 | AK63: 36.602 | AL63: =AK62-AK63 -> -0.6 | AM63: 102.4937 | AN63: =AM62-AM63 -> -1.68 | AP63: 0.041485141 | AQ63: =AP62-AP63 -> -0.000488281 | AR63: 0.031785141 | AS63: =AR62-AR63 -> -0.000488281 | AT63: 0.002 | AU63: =AT62-AT63 -> 0 | AW63: 12.52145922 | AX63: =AW62-AW63 -> -0.20507802 | AY63: 12.51175922 | AZ63: =AY62-AY63 -> -0.20507802 | BB63: 0.3351008541 | BC63: =BB62-BB63 -> -0.000793456625
AB64: 62 | AC64: 0.0117 | AD64: 0.002 | AF64: 66.9717 | AG64: -1.08 | AI64: 37.2117 | AJ64: -0.6 | AK64: 37.202 | AL64: -0.6 | AM64: 104.1737 | AN64: -1.68 | AP64: 0.041973422 | AQ64: -0.000488281 | AR64: 0.032273422 | AS64: -0.000488281 | AT64: 0.002 | AU64: 0 | AW64: 12.72653724 | AX64: -0.20507802 | AY64: 12.71683724 | AZ64: -0.20507802 | BB64: 0.3358943108 | BC64: -0.000793456625
AB65: 63 | AC65: 0.0117 | AD65: 0.002 | AF65: 68.0517 | AG65: -1.08 | AI65: 37.8117 | AJ65: -0.6 | AK65: 37.802 | AL65: -0.6 | AM65: 105.8537 | AN65: -1.68 | AP65: 0.042461703 | AQ65: -0.000488281 | AR65: 0.032761703 | AS65: -0.000488281 | AT65: 0.002 | AU65: 0 | AW65: 12.93161526 | AX65: -0.20507802 | AY65: 12.92191526 | AZ65: -0.20507802 | BB65: 0.3366877674 | BC65: -0.000793456625
AB66: 64 | AC66: 0.0117 | AD66: 0.002 | AF66: 69.1317 | AG66: -1.08 | AI66: 38.4117 | AJ66: -0.6 | AK66: 38.402 | AL66: -0.6 | AM66: =AF66+AK66 -> 107.5337 | AN66: -1.68 | AP66: 0.042949984 | AQ66: -0.000488281 | AR66: 0.033249984 | AS66: -0.000488281 | AT66: 0.002 | AU66: 0 | AW66: 13.13669328 | AX66: -0.20507802 | AY66: 13.12699328 | AZ66: -0.20507802 | BB66: 0.337481224 | BC66: -0.000793456625
AB67: =AB66+1 -> 65 | AC67: 0.0117 | AD67: 0.002 | AF67: 70.2117 | AG67: =AF66-AF67 -> -1.08 | AI67: 39.0117 | AJ67: -0.6 | AK67: 39.002 | AL67: -0.6 | AM67: 109.2137 | AN67: -1.68 | AP67: 0.043438265 | AQ67: -0.000488281 | AR67: 0.033738265 | AS67: -0.000488281 | AT67: 0.002 | AU67: 0 | AW67: 13.3417713 | AX67: -0.20507802 | AY67: 13.3320713 | AZ67: -0.20507802 | BB67: 0.3382746806 | BC67: -0.000793456625
AB68: 66 | AC68: 0.0117 | AD68: 0.002 | AF68: 71.2917 | AG68: -1.08 | AI68: 39.6117 | AJ68: =AI67-AI68 -> -0.6 | AK68: =$AD68+(($AB68*$W$2)*$L$2/($S$2*$T$2)*$U$2) -> 39.602 | AL68: -0.6 | AM68: 110.8937 | AN68: -1.68 | AP68: =$AC68+(($AB68*$X$2)*($O$2/($R$2*$T$2))) -> 0.043926546 | AQ68: -0.000488281 | AR68: 0.034226546 | AS68: -0.000488281 | AT68: =AD68 -> 0.002 | AU68: 0 | AW68: 13.54684932 | AX68: -0.20507802 | AY68: =$AD68+(($AB68*$W$2)*$M$2/($S$2*$T$2)*$U$2) -> 13.53714932 | AZ68: -0.20507802 | BB68: =$AC68+(($AB68*$X$2)*(($O$2+$P$2)/($R$2*$T$2)))+($G$2*1) -> 0.3390681373 | BC68: -0.000793456625
AB69: 67 | AC69: =IF($AB69<$Y$4,$Y$2,(IF(($AC68-$Y$3)>0,$AC68-$Y$3,0))) -> 0.0117 | AD69: =IF($AB69<$AA$4,$AA$2,(IF(($AD68-$AA$3)>0,$AD68-$AA$3,0))) -> 0.002 | AF69: =$AC69+(($AB69*$W$2)*$K$2/($Q$2*$T$2)) -> 72.3717 | AG69: -1.08 | AI69: =$AC69+(($AB69*$W$2)*$L$2/($Q$2*$T$2)) -> 40.2117 | AJ69: =AI68-AI69 -> -0.6 | AK69: 40.202 | AL69: -0.6 | AM69: 112.5737 | AN69: -1.68 | AP69: 0.044414827 | AQ69: =AP68-AP69 -> -0.000488281 | AR69: 0.034714827 | AS69: -0.000488281 | AT69: 0.002 | AU69: 0 | AW69: =$AC69+(($AB69*$W$2)*$M$2/($Q$2*$T$2)) -> 13.75192734 | AX69: =AW68-AW69 -> -0.20507802 | AY69: 13.74222734 | AZ69: =AY68-AY69 -> -0.20507802 | BB69: 0.3398615939 | BC69: =BB68-BB69 -> -0.000793456625
AB70: 68 | AC70: 0.0117 | AD70: 0.002 | AF70: 73.4517 | AG70: -1.08 | AI70: 40.8117 | AJ70: -0.6 | AK70: 40.802 | AL70: -0.6 | AM70: 114.2537 | AN70: -1.68 | AP70: 0.044903108 | AQ70: -0.000488281 | AR70: 0.035203108 | AS70: -0.000488281 | AT70: 0.002 | AU70: 0 | AW70: 13.95700536 | AX70: -0.20507802 | AY70: 13.94730536 | AZ70: -0.20507802 | BB70: 0.3406550505 | BC70: -0.000793456625
AB71: 69 | AC71: 0.0117 | AD71: 0.002 | AF71: 74.5317 | AG71: -1.08 | AI71: 41.4117 | AJ71: -0.6 | AK71: 41.402 | AL71: -0.6 | AM71: 115.9337 | AN71: -1.68 | AP71: 0.045391389 | AQ71: -0.000488281 | AR71: 0.035691389 | AS71: -0.000488281 | AT71: 0.002 | AU71: 0 | AW71: 14.16208338 | AX71: -0.20507802 | AY71: 14.15238338 | AZ71: -0.20507802 | BB71: 0.3414485071 | BC71: -0.000793456625
AB72: 70 | AC72: 0.0117 | AD72: 0.002 | AF72: 75.6117 | AG72: -1.08 | AI72: 42.0117 | AJ72: -0.6 | AK72: 42.002 | AL72: -0.6 | AM72: 117.6137 | AN72: -1.68 | AP72: 0.04587967 | AQ72: -0.000488281 | AR72: 0.03617967 | AS72: -0.000488281 | AT72: 0.002 | AU72: 0 | AW72: 14.3671614 | AX72: -0.20507802 | AY72: 14.3574614 | AZ72: -0.20507802 | BB72: 0.3422419638 | BC72: -0.000793456625
AB73: 71 | AC73: 0.0117 | AD73: 0.002 | AF73: 76.6917 | AG73: -1.08 | AI73: 42.6117 | AJ73: -0.6 | AK73: 42.602 | AL73: -0.6 | AM73: 119.2937 | AN73: -1.68 | AP73: 0.046367951 | AQ73: -0.000488281 | AR73: 0.036667951 | AS73: -0.000488281 | AT73: 0.002 | AU73: 0 | AW73: 14.57223942 | AX73: -0.20507802 | AY73: 14.56253942 | AZ73: -0.20507802 | BB73: 0.3430354204 | BC73: -0.000793456625
AB74: 72 | AC74: 0.0117 | AD74: 0.002 | AF74: 77.7717 | AG74: -1.08 | AI74: 43.2117 | AJ74: -0.6 | AK74: 43.202 | AL74: -0.6 | AM74: 120.9737 | AN74: -1.68 | AP74: 0.046856232 | AQ74: -0.000488281 | AR74: =$AD74+(($AB74*$X$2)*$O$2/($S$2*$T$2)*$V$2) -> 0.037156232 | AS74: -0.000488281 | AT74: 0.002 | AU74: 0 | AW74: 14.77731744 | AX74: -0.20507802 | AY74: 14.76761744 | AZ74: -0.20507802 | BB74: 0.343828877 | BC74: -0.000793456625
AB75: 73 | AC75: 0.0117 | AD75: 0.002 | AF75: 78.8517 | AG75: -1.08 | AI75: 43.8117 | AJ75: -0.6 | AK75: 43.802 | AL75: -0.6 | AM75: 122.6537 | AN75: -1.68 | AP75: 0.047344513 | AQ75: -0.000488281 | AR75: 0.037644513 | AS75: -0.000488281 | AT75: 0.002 | AU75: 0 | AW75: 14.98239546 | AX75: -0.20507802 | AY75: 14.97269546 | AZ75: -0.20507802 | BB75: 0.3446223336 | BC75: -0.000793456625
AB76: 74 | AC76: 0.0117 | AD76: 0.002 | AF76: 79.9317 | AG76: -1.08 | AI76: 44.4117 | AJ76: -0.6 | AK76: 44.402 | AL76: -0.6 | AM76: 124.3337 | AN76: -1.68 | AP76: 0.047832794 | AQ76: -0.000488281 | AR76: 0.038132794 | AS76: -0.000488281 | AT76: 0.002 | AU76: 0 | AW76: 15.18747348 | AX76: -0.20507802 | AY76: 15.17777348 | AZ76: -0.20507802 | BB76: 0.3454157903 | BC76: -0.000793456625
AB77: 75 | AC77: 0.0117 | AD77: 0.002 | AF77: 81.0117 | AG77: -1.08 | AI77: 45.0117 | AJ77: -0.6 | AK77: 45.002 | AL77: -0.6 | AM77: 126.0137 | AN77: -1.68 | AP77: 0.048321075 | AQ77: -0.000488281 | AR77: 0.038621075 | AS77: -0.000488281 | AT77: 0.002 | AU77: 0 | AW77: 15.3925515 | AX77: -0.20507802 | AY77: 15.3828515 | AZ77: -0.20507802 | BB77: 0.3462092469 | BC77: -0.000793456625
AB78: 76 | AC78: 0.0117 | AD78: 0.002 | AF78: 82.0917 | AG78: -1.08 | AI78: 45.6117 | AJ78: -0.6 | AK78: 45.602 | AL78: -0.6 | AM78: 127.6937 | AN78: -1.68 | AP78: 0.048809356 | AQ78: -0.000488281 | AR78: 0.039109356 | AS78: -0.000488281 | AT78: 0.002 | AU78: 0 | AW78: 15.59762952 | AX78: -0.20507802 | AY78: 15.58792952 | AZ78: -0.20507802 | BB78: 0.3470027035 | BC78: -0.000793456625
AB79: 77 | AC79: 0.0117 | AD79: 0.002 | AF79: 83.1717 | AG79: -1.08 | AI79: 46.2117 | AJ79: -0.6 | AK79: 46.202 | AL79: -0.6 | AM79: 129.3737 | AN79: -1.68 | AP79: 0.049297637 | AQ79: -0.000488281 | AR79: 0.039597637 | AS79: -0.000488281 | AT79: 0.002 | AU79: 0 | AW79: 15.80270754 | AX79: -0.20507802 | AY79: 15.79300754 | AZ79: -0.20507802 | BB79: 0.3477961601 | BC79: -0.000793456625
AB80: 78 | AC80: 0.0117 | AD80: 0.002 | AF80: 84.2517 | AG80: -1.08 | AI80: 46.8117 | AJ80: -0.6 | AK80: 46.802 | AL80: -0.6 | AM80: 131.0537 | AN80: -1.68 | AP80: 0.049785918 | AQ80: -0.000488281 | AR80: 0.040085918 | AS80: -0.000488281 | AT80: 0.002 | AU80: 0 | AW80: 16.00778556 | AX80: -0.20507802 | AY80: 15.99808556 | AZ80: -0.20507802 | BB80: 0.3485896167 | BC80: -0.000793456625
AB81: 79 | AC81: 0.0117 | AD81: 0.002 | AF81: 85.3317 | AG81: -1.08 | AI81: 47.4117 | AJ81: -0.6 | AK81: 47.402 | AL81: -0.6 | AM81: 132.7337 | AN81: -1.68 | AP81: 0.050274199 | AQ81: -0.000488281 | AR81: 0.040574199 | AS81: -0.000488281 | AT81: 0.002 | AU81: 0 | AW81: 16.21286358 | AX81: -0.20507802 | AY81: 16.20316358 | AZ81: -0.20507802 | BB81: 0.3493830734 | BC81: -0.000793456625
AB82: 80 | AC82: 0.0117 | AD82: 0.002 | AF82: 86.4117 | AG82: -1.08 | AI82: 48.0117 | AJ82: -0.6 | AK82: 48.002 | AL82: -0.6 | AM82: 134.4137 | AN82: -1.68 | AP82: 0.05076248 | AQ82: -0.000488281 | AR82: 0.04106248 | AS82: -0.000488281 | AT82: 0.002 | AU82: 0 | AW82: 16.4179416 | AX82: -0.20507802 | AY82: 16.4082416 | AZ82: -0.20507802 | BB82: 0.35017653 | BC82: -0.000793456625
AB83: 81 | AC83: 0.0117 | AD83: 0.002 | AF83: 87.4917 | AG83: -1.08 | AI83: 48.6117 | AJ83: -0.6 | AK83: 48.602 | AL83: -0.6 | AM83: 136.0937 | AN83: -1.68 | AP83: 0.051250761 | AQ83: -0.000488281 | AR83: 0.041550761 | AS83: -0.000488281 | AT83: 0.002 | AU83: 0 | AW83: 16.62301962 | AX83: -0.20507802 | AY83: 16.61331962 | AZ83: -0.20507802 | BB83: 0.3509699866 | BC83: -0.000793456625
AB84: 82 | AC84: 0.0117 | AD84: 0.002 | AF84: 88.5717 | AG84: -1.08 | AI84: 49.2117 | AJ84: -0.6 | AK84: 49.202 | AL84: -0.6 | AM84: 137.7737 | AN84: -1.68 | AP84: 0.051739042 | AQ84: -0.000488281 | AR84: 0.042039042 | AS84: -0.000488281 | AT84: 0.002 | AU84: 0 | AW84: 16.82809764 | AX84: -0.20507802 | AY84: 16.81839764 | AZ84: -0.20507802 | BB84: 0.3517634433 | BC84: -0.000793456625
AB85: 83 | AC85: 0.0117 | AD85: 0.002 | AF85: 89.6517 | AG85: -1.08 | AI85: 49.8117 | AJ85: -0.6 | AK85: 49.802 | AL85: -0.6 | AM85: 139.4537 | AN85: -1.68 | AP85: 0.052227323 | AQ85: -0.000488281 | AR85: 0.042527323 | AS85: -0.000488281 | AT85: 0.002 | AU85: 0 | AW85: 17.03317566 | AX85: -0.20507802 | AY85: 17.02347566 | AZ85: -0.20507802 | BB85: 0.3525568999 | BC85: -0.000793456625
AB86: 84 | AC86: 0.0117 | AD86: 0.002 | AF86: 90.7317 | AG86: -1.08 | AI86: 50.4117 | AJ86: -0.6 | AK86: 50.402 | AL86: -0.6 | AM86: 141.1337 | AN86: -1.68 | AP86: 0.052715604 | AQ86: -0.000488281 | AR86: 0.043015604 | AS86: -0.000488281 | AT86: 0.002 | AU86: 0 | AW86: 17.23825368 | AX86: -0.20507802 | AY86: 17.22855368 | AZ86: -0.20507802 | BB86: 0.3533503565 | BC86: -0.000793456625
AB87: 85 | AC87: 0.0117 | AD87: 0.002 | AF87: 91.8117 | AG87: -1.08 | AI87: 51.0117 | AJ87: -0.6 | AK87: 51.002 | AL87: -0.6 | AM87: 142.8137 | AN87: -1.68 | AP87: 0.053203885 | AQ87: -0.000488281 | AR87: 0.043503885 | AS87: -0.000488281 | AT87: 0.002 | AU87: 0 | AW87: 17.4433317 | AX87: -0.20507802 | AY87: 17.4336317 | AZ87: -0.20507802 | BB87: 0.3541438131 | BC87: -0.000793456625
AB88: 86 | AC88: 0.0117 | AD88: 0.002 | AF88: 92.8917 | AG88: -1.08 | AI88: 51.6117 | AJ88: -0.6 | AK88: 51.602 | AL88: -0.6 | AM88: 144.4937 | AN88: -1.68 | AP88: 0.053692166 | AQ88: -0.000488281 | AR88: 0.043992166 | AS88: -0.000488281 | AT88: 0.002 | AU88: 0 | AW88: 17.64840972 | AX88: -0.20507802 | AY88: 17.63870972 | AZ88: -0.20507802 | BB88: 0.3549372698 | BC88: -0.000793456625
AB89: 87 | AC89: 0.0117 | AD89: 0.002 | AF89: 93.9717 | AG89: -1.08 | AI89: 52.2117 | AJ89: -0.6 | AK89: 52.202 | AL89: -0.6 | AM89: 146.1737 | AN89: -1.68 | AP89: 0.054180447 | AQ89: -0.000488281 | AR89: 0.044480447 | AS89: -0.000488281 | AT89: 0.002 | AU89: 0 | AW89: 17.85348774 | AX89: -0.20507802 | AY89: 17.84378774 | AZ89: -0.20507802 | BB89: 0.3557307264 | BC89: -0.000793456625
AB90: 88 | AC90: 0.0117 | AD90: 0.002 | AF90: 95.0517 | AG90: -1.08 | AI90: 52.8117 | AJ90: -0.6 | AK90: 52.802 | AL90: -0.6 | AM90: 147.8537 | AN90: -1.68 | AP90: 0.054668728 | AQ90: -0.000488281 | AR90: 0.044968728 | AS90: -0.000488281 | AT90: 0.002 | AU90: 0 | AW90: 18.05856576 | AX90: -0.20507802 | AY90: 18.04886576 | AZ90: -0.20507802 | BB90: 0.356524183 | BC90: -0.000793456625
AB91: 89 | AC91: 0.0117 | AD91: 0.002 | AF91: 96.1317 | AG91: -1.08 | AI91: 53.4117 | AJ91: -0.6 | AK91: 53.402 | AL91: -0.6 | AM91: 149.5337 | AN91: -1.68 | AP91: 0.055157009 | AQ91: -0.000488281 | AR91: 0.045457009 | AS91: -0.000488281 | AT91: 0.002 | AU91: 0 | AW91: 18.26364378 | AX91: -0.20507802 | AY91: 18.25394378 | AZ91: -0.20507802 | BB91: 0.3573176396 | BC91: -0.000793456625
AB92: 90 | AC92: 0.0117 | AD92: 0.002 | AF92: 97.2117 | AG92: -1.08 | AI92: 54.0117 | AJ92: -0.6 | AK92: 54.002 | AL92: -0.6 | AM92: 151.2137 | AN92: -1.68 | AP92: 0.05564529 | AQ92: -0.000488281 | AR92: 0.04594529 | AS92: -0.000488281 | AT92: 0.002 | AU92: 0 | AW92: 18.4687218 | AX92: -0.20507802 | AY92: 18.4590218 | AZ92: -0.20507802 | BB92: 0.3581110963 | BC92: -0.000793456625
AB93: 91 | AC93: 0.0117 | AD93: 0.002 | AF93: 98.2917 | AG93: -1.08 | AI93: 54.6117 | AJ93: -0.6 | AK93: 54.602 | AL93: -0.6 | AM93: 152.8937 | AN93: -1.68 | AP93: 0.056133571 | AQ93: -0.000488281 | AR93: 0.046433571 | AS93: -0.000488281 | AT93: 0.002 | AU93: 0 | AW93: 18.67379982 | AX93: -0.20507802 | AY93: 18.66409982 | AZ93: -0.20507802 | BB93: 0.3589045529 | BC93: -0.000793456625
AB94: 92 | AC94: 0.0117 | AD94: 0.002 | AF94: 99.3717 | AG94: -1.08 | AI94: 55.2117 | AJ94: -0.6 | AK94: 55.202 | AL94: -0.6 | AM94: 154.5737 | AN94: -1.68 | AP94: 0.056621852 | AQ94: -0.000488281 | AR94: 0.046921852 | AS94: -0.000488281 | AT94: 0.002 | AU94: 0 | AW94: 18.87887784 | AX94: -0.20507802 | AY94: 18.86917784 | AZ94: -0.20507802 | BB94: 0.3596980095 | BC94: -0.000793456625
AB95: 93 | AC95: 0.0117 | AD95: 0.002 | AF95: 100.4517 | AG95: -1.08 | AI95: 55.8117 | AJ95: -0.6 | AK95: 55.802 | AL95: -0.6 | AM95: 156.2537 | AN95: -1.68 | AP95: 0.057110133 | AQ95: -0.000488281 | AR95: 0.047410133 | AS95: -0.000488281 | AT95: 0.002 | AU95: 0 | AW95: 19.08395586 | AX95: -0.20507802 | AY95: 19.07425586 | AZ95: -0.20507802 | BB95: 0.3604914661 | BC95: -0.000793456625
AB96: 94 | AC96: 0.0117 | AD96: 0.002 | AF96: 101.5317 | AG96: -1.08 | AI96: 56.4117 | AJ96: -0.6 | AK96: 56.402 | AL96: -0.6 | AM96: 157.9337 | AN96: -1.68 | AP96: 0.057598414 | AQ96: -0.000488281 | AR96: 0.047898414 | AS96: -0.000488281 | AT96: 0.002 | AU96: 0 | AW96: 19.28903388 | AX96: -0.20507802 | AY96: 19.27933388 | AZ96: -0.20507802 | BB96: 0.3612849228 | BC96: -0.000793456625
AB97: 95 | AC97: 0.0117 | AD97: 0.002 | AF97: 102.6117 | AG97: -1.08 | AI97: 57.0117 | AJ97: -0.6 | AK97: 57.002 | AL97: -0.6 | AM97: 159.6137 | AN97: -1.68 | AP97: 0.058086695 | AQ97: -0.000488281 | AR97: 0.048386695 | AS97: -0.000488281 | AT97: 0.002 | AU97: 0 | AW97: 19.4941119 | AX97: -0.20507802 | AY97: 19.4844119 | AZ97: -0.20507802 | BB97: 0.3620783794 | BC97: -0.000793456625
AB98: 96 | AC98: 0.0117 | AD98: 0.002 | AF98: 103.6917 | AG98: -1.08 | AI98: 57.6117 | AJ98: -0.6 | AK98: 57.602 | AL98: -0.6 | AM98: 161.2937 | AN98: -1.68 | AP98: 0.058574976 | AQ98: -0.000488281 | AR98: 0.048874976 | AS98: -0.000488281 | AT98: 0.002 | AU98: 0 | AW98: 19.69918992 | AX98: -0.20507802 | AY98: 19.68948992 | AZ98: -0.20507802 | BB98: 0.362871836 | BC98: -0.000793456625
AB99: 97 | AC99: 0.0117 | AD99: 0.002 | AF99: 104.7717 | AG99: -1.08 | AI99: 58.2117 | AJ99: -0.6 | AK99: 58.202 | AL99: -0.6 | AM99: 162.9737 | AN99: -1.68 | AP99: 0.059063257 | AQ99: -0.000488281 | AR99: 0.049363257 | AS99: -0.000488281 | AT99: 0.002 | AU99: 0 | AW99: 19.90426794 | AX99: -0.20507802 | AY99: 19.89456794 | AZ99: -0.20507802 | BB99: 0.3636652926 | BC99: -0.000793456625
AB100: =AB99+1 -> 98 | AC100: 0.0117 | AD100: 0.002 | AF100: 105.8517 | AG100: -1.08 | AI100: 58.8117 | AJ100: -0.6 | AK100: 58.802 | AL100: -0.6 | AM100: 164.6537 | AN100: -1.68 | AP100: 0.059551538 | AQ100: -0.000488281 | AR100: 0.049851538 | AS100: -0.000488281 | AT100: 0.002 | AU100: 0 | AW100: 20.10934596 | AX100: -0.20507802 | AY100: 20.09964596 | AZ100: -0.20507802 | BB100: 0.3644587493 | BC100: -0.000793456625
AB101: =AB100+1 -> 99 | AC101: 0.0117 | AD101: 0.002 | AF101: 106.9317 | AG101: -1.08 | AI101: 59.4117 | AJ101: -0.6 | AK101: 59.402 | AL101: -0.6 | AM101: 166.3337 | AN101: -1.68 | AP101: 0.060039819 | AQ101: -0.000488281 | AR101: 0.050339819 | AS101: -0.000488281 | AT101: 0.002 | AU101: 0 | AW101: 20.31442398 | AX101: -0.20507802 | AY101: 20.30472398 | AZ101: -0.20507802 | BB101: 0.3652522059 | BC101: -0.000793456625
AB102: =AB101+1 -> 100 | AC102: =IF($AB102<$Y$4,$Y$2,(IF(($AC101-$Y$3)>0,$AC101-$Y$3,0))) -> 0.0117 | AD102: =IF($AB102<$AA$4,$AA$2,(IF(($AD101-$AA$3)>0,$AD101-$AA$3,0))) -> 0.002 | AF102: 108.0117 | AG102: =AF101-AF102 -> -1.08 | AI102: 60.0117 | AJ102: =AI101-AI102 -> -0.6 | AK102: 60.002 | AL102: =AK101-AK102 -> -0.6 | AM102: 168.0137 | AN102: =AM101-AM102 -> -1.68 | AP102: 0.0605281 | AQ102: =AP101-AP102 -> -0.000488281 | AR102: 0.0508281 | AS102: =AR101-AR102 -> -0.000488281 | AT102: 0.002 | AU102: =AT101-AT102 -> 0 | AW102: 20.519502 | AX102: =AW101-AW102 -> -0.20507802 | AY102: 20.509802 | AZ102: =AY101-AY102 -> -0.20507802 | BB102: 0.3660456625 | BC102: =BB101-BB102 -> -0.000793456625
AB103: =AB102+1 -> 101 | AC103: 0.0117 | AD103: 0.002 | AF103: 109.0917 | AG103: -1.08 | AI103: 60.6117 | AJ103: -0.6 | AK103: 60.602 | AL103: -0.6 | AM103: 169.6937 | AN103: -1.68 | AP103: 0.061016381 | AQ103: -0.000488281 | AR103: 0.051316381 | AS103: -0.000488281 | AT103: 0.002 | AU103: 0 | AW103: 20.72458002 | AX103: -0.20507802 | AY103: 20.71488002 | AZ103: -0.20507802 | BB103: 0.3668391191 | BC103: -0.000793456625
AB104: =AB103+1 -> 102 | AC104: 0.0117 | AD104: 0.002 | AF104: 110.1717 | AG104: -1.08 | AI104: 61.2117 | AJ104: -0.6 | AK104: 61.202 | AL104: -0.6 | AM104: 171.3737 | AN104: -1.68 | AP104: 0.061504662 | AQ104: -0.000488281 | AR104: 0.051804662 | AS104: -0.000488281 | AT104: 0.002 | AU104: 0 | AW104: 20.92965804 | AX104: -0.20507802 | AY104: 20.91995804 | AZ104: -0.20507802 | BB104: 0.3676325758 | BC104: -0.000793456625
AB105: =AB104+1 -> 103 | AC105: 0.0117 | AD105: 0.002 | AF105: 111.2517 | AG105: -1.08 | AI105: 61.8117 | AJ105: -0.6 | AK105: 61.802 | AL105: -0.6 | AM105: 173.0537 | AN105: -1.68 | AP105: 0.061992943 | AQ105: -0.000488281 | AR105: 0.052292943 | AS105: -0.000488281 | AT105: 0.002 | AU105: 0 | AW105: 21.13473606 | AX105: -0.20507802 | AY105: 21.12503606 | AZ105: -0.20507802 | BB105: 0.3684260324 | BC105: -0.000793456625
AB106: 104 | AC106: 0.0117 | AD106: 0.002 | AF106: 112.3317 | AG106: -1.08 | AI106: 62.4117 | AJ106: -0.6 | AK106: 62.402 | AL106: -0.6 | AM106: 174.7337 | AN106: -1.68 | AP106: 0.062481224 | AQ106: -0.000488281 | AR106: 0.052781224 | AS106: -0.000488281 | AT106: 0.002 | AU106: 0 | AW106: 21.33981408 | AX106: -0.20507802 | AY106: 21.33011408 | AZ106: -0.20507802 | BB106: 0.369219489 | BC106: -0.000793456625
AB107: 105 | AC107: 0.0117 | AD107: 0.002 | AF107: 113.4117 | AG107: -1.08 | AI107: 63.0117 | AJ107: -0.6 | AK107: 63.002 | AL107: -0.6 | AM107: 176.4137 | AN107: -1.68 | AP107: 0.062969505 | AQ107: -0.000488281 | AR107: 0.053269505 | AS107: -0.000488281 | AT107: 0.002 | AU107: 0 | AW107: 21.5448921 | AX107: -0.20507802 | AY107: 21.5351921 | AZ107: -0.20507802 | BB107: 0.3700129456 | BC107: -0.000793456625
AB108: 106 | AC108: 0.0117 | AD108: 0.002 | AF108: 114.4917 | AG108: -1.08 | AI108: 63.6117 | AJ108: -0.6 | AK108: 63.602 | AL108: -0.6 | AM108: 178.0937 | AN108: -1.68 | AP108: 0.063457786 | AQ108: -0.000488281 | AR108: 0.053757786 | AS108: -0.000488281 | AT108: 0.002 | AU108: 0 | AW108: 21.74997012 | AX108: -0.20507802 | AY108: 21.74027012 | AZ108: -0.20507802 | BB108: 0.3708064023 | BC108: -0.000793456625
AB109: 107 | AC109: 0.0117 | AD109: 0.002 | AF109: 115.5717 | AG109: -1.08 | AI109: 64.2117 | AJ109: -0.6 | AK109: 64.202 | AL109: -0.6 | AM109: 179.7737 | AN109: -1.68 | AP109: 0.063946067 | AQ109: -0.000488281 | AR109: 0.054246067 | AS109: -0.000488281 | AT109: 0.002 | AU109: 0 | AW109: 21.95504814 | AX109: -0.20507802 | AY109: 21.94534814 | AZ109: -0.20507802 | BB109: 0.3715998589 | BC109: -0.000793456625
AB110: 108 | AC110: 0.0117 | AD110: 0.002 | AF110: 116.6517 | AG110: -1.08 | AI110: 64.8117 | AJ110: -0.6 | AK110: 64.802 | AL110: -0.6 | AM110: 181.4537 | AN110: -1.68 | AP110: 0.064434348 | AQ110: -0.000488281 | AR110: 0.054734348 | AS110: -0.000488281 | AT110: 0.002 | AU110: 0 | AW110: 22.16012616 | AX110: -0.20507802 | AY110: 22.15042616 | AZ110: -0.20507802 | BB110: 0.3723933155 | BC110: -0.000793456625
AB111: 109 | AC111: 0.0117 | AD111: 0.002 | AF111: 117.7317 | AG111: -1.08 | AI111: 65.4117 | AJ111: -0.6 | AK111: 65.402 | AL111: -0.6 | AM111: 183.1337 | AN111: -1.68 | AP111: 0.064922629 | AQ111: -0.000488281 | AR111: 0.055222629 | AS111: -0.000488281 | AT111: 0.002 | AU111: 0 | AW111: 22.36520418 | AX111: -0.20507802 | AY111: 22.35550418 | AZ111: -0.20507802 | BB111: 0.3731867721 | BC111: -0.000793456625
AB112: 110 | AC112: 0.0117 | AD112: 0.002 | AF112: 118.8117 | AG112: -1.08 | AI112: 66.0117 | AJ112: -0.6 | AK112: 66.002 | AL112: -0.6 | AM112: 184.8137 | AN112: -1.68 | AP112: 0.06541091 | AQ112: -0.000488281 | AR112: 0.05571091 | AS112: -0.000488281 | AT112: 0.002 | AU112: 0 | AW112: 22.5702822 | AX112: -0.20507802 | AY112: 22.5605822 | AZ112: -0.20507802 | BB112: 0.3739802288 | BC112: -0.000793456625
AB113: 111 | AC113: 0.0117 | AD113: 0.002 | AF113: 119.8917 | AG113: -1.08 | AI113: 66.6117 | AJ113: -0.6 | AK113: 66.602 | AL113: -0.6 | AM113: 186.4937 | AN113: -1.68 | AP113: 0.065899191 | AQ113: -0.000488281 | AR113: 0.056199191 | AS113: -0.000488281 | AT113: 0.002 | AU113: 0 | AW113: 22.77536022 | AX113: -0.20507802 | AY113: 22.76566022 | AZ113: -0.20507802 | BB113: 0.3747736854 | BC113: -0.000793456625
AB114: 112 | AC114: 0.0117 | AD114: 0.002 | AF114: 120.9717 | AG114: -1.08 | AI114: 67.2117 | AJ114: -0.6 | AK114: 67.202 | AL114: -0.6 | AM114: 188.1737 | AN114: -1.68 | AP114: 0.066387472 | AQ114: -0.000488281 | AR114: 0.056687472 | AS114: -0.000488281 | AT114: 0.002 | AU114: 0 | AW114: 22.98043824 | AX114: -0.20507802 | AY114: 22.97073824 | AZ114: -0.20507802 | BB114: 0.375567142 | BC114: -0.000793456625
AB115: 113 | AC115: 0.0117 | AD115: 0.002 | AF115: 122.0517 | AG115: -1.08 | AI115: 67.8117 | AJ115: -0.6 | AK115: 67.802 | AL115: -0.6 | AM115: 189.8537 | AN115: -1.68 | AP115: 0.066875753 | AQ115: -0.000488281 | AR115: 0.057175753 | AS115: -0.000488281 | AT115: 0.002 | AU115: 0 | AW115: 23.18551626 | AX115: -0.20507802 | AY115: 23.17581626 | AZ115: -0.20507802 | BB115: 0.3763605986 | BC115: -0.000793456625
AB116: 114 | AC116: 0.0117 | AD116: 0.002 | AF116: 123.1317 | AG116: -1.08 | AI116: 68.4117 | AJ116: -0.6 | AK116: 68.402 | AL116: -0.6 | AM116: 191.5337 | AN116: -1.68 | AP116: 0.067364034 | AQ116: -0.000488281 | AR116: 0.057664034 | AS116: -0.000488281 | AT116: 0.002 | AU116: 0 | AW116: 23.39059428 | AX116: -0.20507802 | AY116: 23.38089428 | AZ116: -0.20507802 | BB116: 0.3771540553 | BC116: -0.000793456625
AB117: 115 | AC117: 0.0117 | AD117: 0.002 | AF117: 124.2117 | AG117: -1.08 | AI117: 69.0117 | AJ117: -0.6 | AK117: 69.002 | AL117: -0.6 | AM117: 193.2137 | AN117: -1.68 | AP117: 0.067852315 | AQ117: -0.000488281 | AR117: 0.058152315 | AS117: -0.000488281 | AT117: 0.002 | AU117: 0 | AW117: 23.5956723 | AX117: -0.20507802 | AY117: 23.5859723 | AZ117: -0.20507802 | BB117: 0.3779475119 | BC117: -0.000793456625
AB118: 116 | AC118: 0.0117 | AD118: 0.002 | AF118: 125.2917 | AG118: -1.08 | AI118: 69.6117 | AJ118: -0.6 | AK118: 69.602 | AL118: -0.6 | AM118: 194.8937 | AN118: -1.68 | AP118: 0.068340596 | AQ118: -0.000488281 | AR118: 0.058640596 | AS118: -0.000488281 | AT118: 0.002 | AU118: 0 | AW118: 23.80075032 | AX118: -0.20507802 | AY118: 23.79105032 | AZ118: -0.20507802 | BB118: 0.3787409685 | BC118: -0.000793456625
AB119: 117 | AC119: 0.0117 | AD119: 0.002 | AF119: 126.3717 | AG119: -1.08 | AI119: 70.2117 | AJ119: -0.6 | AK119: 70.202 | AL119: -0.6 | AM119: 196.5737 | AN119: -1.68 | AP119: 0.068828877 | AQ119: -0.000488281 | AR119: 0.059128877 | AS119: -0.000488281 | AT119: 0.002 | AU119: 0 | AW119: 24.00582834 | AX119: -0.20507802 | AY119: 23.99612834 | AZ119: -0.20507802 | BB119: 0.3795344251 | BC119: -0.000793456625
AB120: 118 | AC120: 0.0117 | AD120: 0.002 | AF120: 127.4517 | AG120: -1.08 | AI120: 70.8117 | AJ120: -0.6 | AK120: 70.802 | AL120: -0.6 | AM120: 198.2537 | AN120: -1.68 | AP120: 0.069317158 | AQ120: -0.000488281 | AR120: 0.059617158 | AS120: -0.000488281 | AT120: 0.002 | AU120: 0 | AW120: 24.21090636 | AX120: -0.20507802 | AY120: 24.20120636 | AZ120: -0.20507802 | BB120: 0.3803278818 | BC120: -0.000793456625
AB121: 119 | AC121: 0.0117 | AD121: 0.002 | AF121: 128.5317 | AG121: -1.08 | AI121: 71.4117 | AJ121: -0.6 | AK121: 71.402 | AL121: -0.6 | AM121: 199.9337 | AN121: -1.68 | AP121: 0.069805439 | AQ121: -0.000488281 | AR121: 0.060105439 | AS121: -0.000488281 | AT121: 0.002 | AU121: 0 | AW121: 24.41598438 | AX121: -0.20507802 | AY121: 24.40628438 | AZ121: -0.20507802 | BB121: 0.3811213384 | BC121: -0.000793456625
AB122: 120 | AC122: 0.0117 | AD122: 0.002 | AF122: 129.6117 | AG122: -1.08 | AI122: 72.0117 | AJ122: -0.6 | AK122: 72.002 | AL122: -0.6 | AM122: 201.6137 | AN122: -1.68 | AP122: 0.07029372 | AQ122: -0.000488281 | AR122: 0.06059372 | AS122: -0.000488281 | AT122: 0.002 | AU122: 0 | AW122: 24.6210624 | AX122: -0.20507802 | AY122: 24.6113624 | AZ122: -0.20507802 | BB122: 0.381914795 | BC122: -0.000793456625
AB123: 121 | AC123: 0.0117 | AD123: 0.002 | AF123: 130.6917 | AG123: -1.08 | AI123: 72.6117 | AJ123: -0.6 | AK123: 72.602 | AL123: -0.6 | AM123: 203.2937 | AN123: -1.68 | AP123: 0.070782001 | AQ123: -0.000488281 | AR123: 0.061082001 | AS123: -0.000488281 | AT123: 0.002 | AU123: 0 | AW123: 24.82614042 | AX123: -0.20507802 | AY123: 24.81644042 | AZ123: -0.20507802 | BB123: 0.3827082516 | BC123: -0.000793456625
AB124: 122 | AC124: 0.0117 | AD124: 0.002 | AF124: 131.7717 | AG124: -1.08 | AI124: 73.2117 | AJ124: -0.6 | AK124: 73.202 | AL124: -0.6 | AM124: 204.9737 | AN124: -1.68 | AP124: 0.071270282 | AQ124: -0.000488281 | AR124: 0.061570282 | AS124: -0.000488281 | AT124: 0.002 | AU124: 0 | AW124: 25.03121844 | AX124: -0.20507802 | AY124: 25.02151844 | AZ124: -0.20507802 | BB124: 0.3835017083 | BC124: -0.000793456625
AB125: 123 | AC125: 0.0117 | AD125: 0.002 | AF125: 132.8517 | AG125: -1.08 | AI125: 73.8117 | AJ125: -0.6 | AK125: 73.802 | AL125: -0.6 | AM125: 206.6537 | AN125: -1.68 | AP125: 0.071758563 | AQ125: -0.000488281 | AR125: 0.062058563 | AS125: -0.000488281 | AT125: 0.002 | AU125: 0 | AW125: 25.23629646 | AX125: -0.20507802 | AY125: 25.22659646 | AZ125: -0.20507802 | BB125: 0.3842951649 | BC125: -0.000793456625
AB126: 124 | AC126: 0.0117 | AD126: 0.002 | AF126: 133.9317 | AG126: -1.08 | AI126: 74.4117 | AJ126: -0.6 | AK126: 74.402 | AL126: -0.6 | AM126: 208.3337 | AN126: -1.68 | AP126: 0.072246844 | AQ126: -0.000488281 | AR126: 0.062546844 | AS126: -0.000488281 | AT126: 0.002 | AU126: 0 | AW126: 25.44137448 | AX126: -0.20507802 | AY126: 25.43167448 | AZ126: -0.20507802 | BB126: 0.3850886215 | BC126: -0.000793456625
AB127: 125 | AC127: 0.0117 | AD127: 0.002 | AF127: 135.0117 | AG127: -1.08 | AI127: 75.0117 | AJ127: -0.6 | AK127: 75.002 | AL127: -0.6 | AM127: 210.0137 | AN127: -1.68 | AP127: 0.072735125 | AQ127: -0.000488281 | AR127: 0.063035125 | AS127: -0.000488281 | AT127: 0.002 | AU127: 0 | AW127: 25.6464525 | AX127: -0.20507802 | AY127: 25.6367525 | AZ127: -0.20507802 | BB127: 0.3858820781 | BC127: -0.000793456625
AB128: 126 | AC128: 0.0117 | AD128: 0.002 | AF128: 136.0917 | AG128: -1.08 | AI128: 75.6117 | AJ128: -0.6 | AK128: 75.602 | AL128: -0.6 | AM128: 211.6937 | AN128: -1.68 | AP128: 0.073223406 | AQ128: -0.000488281 | AR128: 0.063523406 | AS128: -0.000488281 | AT128: 0.002 | AU128: 0 | AW128: 25.85153052 | AX128: -0.20507802 | AY128: 25.84183052 | AZ128: -0.20507802 | BB128: 0.3866755348 | BC128: -0.000793456625
AB129: 127 | AC129: 0.0117 | AD129: 0.002 | AF129: 137.1717 | AG129: -1.08 | AI129: 76.2117 | AJ129: -0.6 | AK129: 76.202 | AL129: -0.6 | AM129: 213.3737 | AN129: -1.68 | AP129: 0.073711687 | AQ129: -0.000488281 | AR129: 0.064011687 | AS129: -0.000488281 | AT129: 0.002 | AU129: 0 | AW129: 26.05660854 | AX129: -0.20507802 | AY129: 26.04690854 | AZ129: -0.20507802 | BB129: 0.3874689914 | BC129: -0.000793456625
AB130: 128 | AC130: 0.0117 | AD130: 0.002 | AF130: 138.2517 | AG130: -1.08 | AI130: 76.8117 | AJ130: -0.6 | AK130: 76.802 | AL130: -0.6 | AM130: =AF130+AK130 -> 215.0537 | AN130: -1.68 | AP130: 0.074199968 | AQ130: -0.000488281 | AR130: 0.064499968 | AS130: -0.000488281 | AT130: 0.002 | AU130: 0 | AW130: 26.26168656 | AX130: -0.20507802 | AY130: 26.25198656 | AZ130: -0.20507802 | BB130: 0.388262448 | BC130: -0.000793456625
AB131: 129 | AC131: 0.0117 | AD131: 0.002 | AF131: 139.3317 | AG131: =AF130-AF131 -> -1.08 | AI131: 77.4117 | AJ131: -0.6 | AK131: 77.402 | AL131: -0.6 | AM131: 216.7337 | AN131: -1.68 | AP131: 0.074688249 | AQ131: -0.000488281 | AR131: 0.064988249 | AS131: -0.000488281 | AT131: 0.002 | AU131: 0 | AW131: 26.46676458 | AX131: -0.20507802 | AY131: 26.45706458 | AZ131: -0.20507802 | BB131: 0.3890559046 | BC131: -0.000793456625
AB132: 130 | AC132: 0.0117 | AD132: 0.002 | AF132: 140.4117 | AG132: -1.08 | AI132: 78.0117 | AJ132: =AI131-AI132 -> -0.6 | AK132: =$AD132+(($AB132*$W$2)*$L$2/($S$2*$T$2)*$U$2) -> 78.002 | AL132: -0.6 | AM132: 218.4137 | AN132: -1.68 | AP132: =$AC132+(($AB132*$X$2)*($O$2/($R$2*$T$2))) -> 0.07517653 | AQ132: -0.000488281 | AR132: 0.06547653 | AS132: -0.000488281 | AT132: =AD132 -> 0.002 | AU132: 0 | AW132: 26.6718426 | AX132: -0.20507802 | AY132: =$AD132+(($AB132*$W$2)*$M$2/($S$2*$T$2)*$U$2) -> 26.6621426 | AZ132: -0.20507802 | BB132: =$AC132+(($AB132*$X$2)*(($O$2+$P$2)/($R$2*$T$2)))+($G$2*1) -> 0.3898493613 | BC132: -0.000793456625
AB133: 131 | AC133: =IF($AB133<$Y$4,$Y$2,(IF(($AC132-$Y$3)>0,$AC132-$Y$3,0))) -> 0.0117 | AD133: =IF($AB133<$AA$4,$AA$2,(IF(($AD132-$AA$3)>0,$AD132-$AA$3,0))) -> 0.002 | AF133: =$AC133+(($AB133*$W$2)*$K$2/($Q$2*$T$2)) -> 141.4917 | AG133: -1.08 | AI133: =$AC133+(($AB133*$W$2)*$L$2/($Q$2*$T$2)) -> 78.6117 | AJ133: =AI132-AI133 -> -0.6 | AK133: 78.602 | AL133: -0.6 | AM133: 220.0937 | AN133: -1.68 | AP133: 0.075664811 | AQ133: =AP132-AP133 -> -0.000488281 | AR133: 0.065964811 | AS133: -0.000488281 | AT133: 0.002 | AU133: 0 | AW133: =$AC133+(($AB133*$W$2)*$M$2/($Q$2*$T$2)) -> 26.87692062 | AX133: =AW132-AW133 -> -0.20507802 | AY133: 26.86722062 | AZ133: =AY132-AY133 -> -0.20507802 | BB133: 0.3906428179 | BC133: =BB132-BB133 -> -0.000793456625
AB134: 132 | AC134: 0.0117 | AD134: 0.002 | AF134: 142.5717 | AG134: -1.08 | AI134: 79.2117 | AJ134: -0.6 | AK134: 79.202 | AL134: -0.6 | AM134: 221.7737 | AN134: -1.68 | AP134: 0.076153092 | AQ134: -0.000488281 | AR134: 0.066453092 | AS134: -0.000488281 | AT134: 0.002 | AU134: 0 | AW134: 27.08199864 | AX134: -0.20507802 | AY134: 27.07229864 | AZ134: -0.20507802 | BB134: 0.3914362745 | BC134: -0.000793456625
AB135: 133 | AC135: 0.0117 | AD135: 0.002 | AF135: 143.6517 | AG135: -1.08 | AI135: 79.8117 | AJ135: -0.6 | AK135: 79.802 | AL135: -0.6 | AM135: 223.4537 | AN135: -1.68 | AP135: 0.076641373 | AQ135: -0.000488281 | AR135: 0.066941373 | AS135: -0.000488281 | AT135: 0.002 | AU135: 0 | AW135: 27.28707666 | AX135: -0.20507802 | AY135: 27.27737666 | AZ135: -0.20507802 | BB135: 0.3922297311 | BC135: -0.000793456625
AB136: 134 | AC136: 0.0117 | AD136: 0.002 | AF136: 144.7317 | AG136: -1.08 | AI136: 80.4117 | AJ136: -0.6 | AK136: 80.402 | AL136: -0.6 | AM136: 225.1337 | AN136: -1.68 | AP136: 0.077129654 | AQ136: -0.000488281 | AR136: 0.067429654 | AS136: -0.000488281 | AT136: 0.002 | AU136: 0 | AW136: 27.49215468 | AX136: -0.20507802 | AY136: 27.48245468 | AZ136: -0.20507802 | BB136: 0.3930231878 | BC136: -0.000793456625
AB137: 135 | AC137: 0.0117 | AD137: 0.002 | AF137: 145.8117 | AG137: -1.08 | AI137: 81.0117 | AJ137: -0.6 | AK137: 81.002 | AL137: -0.6 | AM137: 226.8137 | AN137: -1.68 | AP137: 0.077617935 | AQ137: -0.000488281 | AR137: 0.067917935 | AS137: -0.000488281 | AT137: 0.002 | AU137: 0 | AW137: 27.6972327 | AX137: -0.20507802 | AY137: 27.6875327 | AZ137: -0.20507802 | BB137: 0.3938166444 | BC137: -0.000793456625
AB138: 136 | AC138: 0.0117 | AD138: 0.002 | AF138: 146.8917 | AG138: -1.08 | AI138: 81.6117 | AJ138: -0.6 | AK138: 81.602 | AL138: -0.6 | AM138: 228.4937 | AN138: -1.68 | AP138: 0.078106216 | AQ138: -0.000488281 | AR138: =$AD138+(($AB138*$X$2)*$O$2/($S$2*$T$2)*$V$2) -> 0.068406216 | AS138: -0.000488281 | AT138: 0.002 | AU138: 0 | AW138: 27.90231072 | AX138: -0.20507802 | AY138: 27.89261072 | AZ138: -0.20507802 | BB138: 0.394610101 | BC138: -0.000793456625
AB139: 137 | AC139: 0.0117 | AD139: 0.002 | AF139: 147.9717 | AG139: -1.08 | AI139: 82.2117 | AJ139: -0.6 | AK139: 82.202 | AL139: -0.6 | AM139: 230.1737 | AN139: -1.68 | AP139: 0.078594497 | AQ139: -0.000488281 | AR139: 0.068894497 | AS139: -0.000488281 | AT139: 0.002 | AU139: 0 | AW139: 28.10738874 | AX139: -0.20507802 | AY139: 28.09768874 | AZ139: -0.20507802 | BB139: 0.3954035576 | BC139: -0.000793456625
AB140: 138 | AC140: 0.0117 | AD140: 0.002 | AF140: 149.0517 | AG140: -1.08 | AI140: 82.8117 | AJ140: -0.6 | AK140: 82.802 | AL140: -0.6 | AM140: 231.8537 | AN140: -1.68 | AP140: 0.079082778 | AQ140: -0.000488281 | AR140: 0.069382778 | AS140: -0.000488281 | AT140: 0.002 | AU140: 0 | AW140: 28.31246676 | AX140: -0.20507802 | AY140: 28.30276676 | AZ140: -0.20507802 | BB140: 0.3961970143 | BC140: -0.000793456625
AB141: 139 | AC141: 0.0117 | AD141: 0.002 | AF141: 150.1317 | AG141: -1.08 | AI141: 83.4117 | AJ141: -0.6 | AK141: 83.402 | AL141: -0.6 | AM141: 233.5337 | AN141: -1.68 | AP141: 0.079571059 | AQ141: -0.000488281 | AR141: 0.069871059 | AS141: -0.000488281 | AT141: 0.002 | AU141: 0 | AW141: 28.51754478 | AX141: -0.20507802 | AY141: 28.50784478 | AZ141: -0.20507802 | BB141: 0.3969904709 | BC141: -0.000793456625
AB142: 140 | AC142: 0.0117 | AD142: 0.002 | AF142: 151.2117 | AG142: -1.08 | AI142: 84.0117 | AJ142: -0.6 | AK142: 84.002 | AL142: -0.6 | AM142: 235.2137 | AN142: -1.68 | AP142: 0.08005934 | AQ142: -0.000488281 | AR142: 0.07035934 | AS142: -0.000488281 | AT142: 0.002 | AU142: 0 | AW142: 28.7226228 | AX142: -0.20507802 | AY142: 28.7129228 | AZ142: -0.20507802 | BB142: 0.3977839275 | BC142: -0.000793456625
AB143: 141 | AC143: 0.0117 | AD143: 0.002 | AF143: 152.2917 | AG143: -1.08 | AI143: 84.6117 | AJ143: -0.6 | AK143: 84.602 | AL143: -0.6 | AM143: 236.8937 | AN143: -1.68 | AP143: 0.080547621 | AQ143: -0.000488281 | AR143: 0.070847621 | AS143: -0.000488281 | AT143: 0.002 | AU143: 0 | AW143: 28.92770082 | AX143: -0.20507802 | AY143: 28.91800082 | AZ143: -0.20507802 | BB143: 0.3985773841 | BC143: -0.000793456625
AB144: 142 | AC144: 0.0117 | AD144: 0.002 | AF144: 153.3717 | AG144: -1.08 | AI144: 85.2117 | AJ144: -0.6 | AK144: 85.202 | AL144: -0.6 | AM144: 238.5737 | AN144: -1.68 | AP144: 0.081035902 | AQ144: -0.000488281 | AR144: 0.071335902 | AS144: -0.000488281 | AT144: 0.002 | AU144: 0 | AW144: 29.13277884 | AX144: -0.20507802 | AY144: 29.12307884 | AZ144: -0.20507802 | BB144: 0.3993708408 | BC144: -0.000793456625
AB145: 143 | AC145: 0.0117 | AD145: 0.002 | AF145: 154.4517 | AG145: -1.08 | AI145: 85.8117 | AJ145: -0.6 | AK145: 85.802 | AL145: -0.6 | AM145: 240.2537 | AN145: -1.68 | AP145: 0.081524183 | AQ145: -0.000488281 | AR145: 0.071824183 | AS145: -0.000488281 | AT145: 0.002 | AU145: 0 | AW145: 29.33785686 | AX145: -0.20507802 | AY145: 29.32815686 | AZ145: -0.20507802 | BB145: 0.4001642974 | BC145: -0.000793456625
AB146: 144 | AC146: 0.0117 | AD146: 0.002 | AF146: 155.5317 | AG146: -1.08 | AI146: 86.4117 | AJ146: -0.6 | AK146: 86.402 | AL146: -0.6 | AM146: 241.9337 | AN146: -1.68 | AP146: 0.082012464 | AQ146: -0.000488281 | AR146: 0.072312464 | AS146: -0.000488281 | AT146: 0.002 | AU146: 0 | AW146: 29.54293488 | AX146: -0.20507802 | AY146: 29.53323488 | AZ146: -0.20507802 | BB146: 0.400957754 | BC146: -0.000793456625
AB147: 145 | AC147: 0.0117 | AD147: 0.002 | AF147: 156.6117 | AG147: -1.08 | AI147: 87.0117 | AJ147: -0.6 | AK147: 87.002 | AL147: -0.6 | AM147: 243.6137 | AN147: -1.68 | AP147: 0.082500745 | AQ147: -0.000488281 | AR147: 0.072800745 | AS147: -0.000488281 | AT147: 0.002 | AU147: 0 | AW147: 29.7480129 | AX147: -0.20507802 | AY147: 29.7383129 | AZ147: -0.20507802 | BB147: 0.4017512106 | BC147: -0.000793456625
AB148: 146 | AC148: 0.0117 | AD148: 0.002 | AF148: 157.6917 | AG148: -1.08 | AI148: 87.6117 | AJ148: -0.6 | AK148: 87.602 | AL148: -0.6 | AM148: 245.2937 | AN148: -1.68 | AP148: 0.082989026 | AQ148: -0.000488281 | AR148: 0.073289026 | AS148: -0.000488281 | AT148: 0.002 | AU148: 0 | AW148: 29.95309092 | AX148: -0.20507802 | AY148: 29.94339092 | AZ148: -0.20507802 | BB148: 0.4025446673 | BC148: -0.000793456625
AB149: 147 | AC149: 0.0117 | AD149: 0.002 | AF149: 158.7717 | AG149: -1.08 | AI149: 88.2117 | AJ149: -0.6 | AK149: 88.202 | AL149: -0.6 | AM149: 246.9737 | AN149: -1.68 | AP149: 0.083477307 | AQ149: -0.000488281 | AR149: 0.073777307 | AS149: -0.000488281 | AT149: 0.002 | AU149: 0 | AW149: 30.15816894 | AX149: -0.20507802 | AY149: 30.14846894 | AZ149: -0.20507802 | BB149: 0.4033381239 | BC149: -0.000793456625
AB150: 148 | AC150: 0.0117 | AD150: 0.002 | AF150: 159.8517 | AG150: -1.08 | AI150: 88.8117 | AJ150: -0.6 | AK150: 88.802 | AL150: -0.6 | AM150: 248.6537 | AN150: -1.68 | AP150: 0.083965588 | AQ150: -0.000488281 | AR150: 0.074265588 | AS150: -0.000488281 | AT150: 0.002 | AU150: 0 | AW150: 30.36324696 | AX150: -0.20507802 | AY150: 30.35354696 | AZ150: -0.20507802 | BB150: 0.4041315805 | BC150: -0.000793456625
AB151: 149 | AC151: 0.0117 | AD151: 0.002 | AF151: 160.9317 | AG151: -1.08 | AI151: 89.4117 | AJ151: -0.6 | AK151: 89.402 | AL151: -0.6 | AM151: 250.3337 | AN151: -1.68 | AP151: 0.084453869 | AQ151: -0.000488281 | AR151: 0.074753869 | AS151: -0.000488281 | AT151: 0.002 | AU151: 0 | AW151: 30.56832498 | AX151: -0.20507802 | AY151: 30.55862498 | AZ151: -0.20507802 | BB151: 0.4049250371 | BC151: -0.000793456625
AB152: 150 | AC152: 0.0117 | AD152: 0.002 | AF152: 162.0117 | AG152: -1.08 | AI152: 90.0117 | AJ152: -0.6 | AK152: 90.002 | AL152: -0.6 | AM152: 252.0137 | AN152: -1.68 | AP152: 0.08494215 | AQ152: -0.000488281 | AR152: 0.07524215 | AS152: -0.000488281 | AT152: 0.002 | AU152: 0 | AW152: 30.773403 | AX152: -0.20507802 | AY152: 30.763703 | AZ152: -0.20507802 | BB152: 0.4057184938 | BC152: -0.000793456625
AB153: 151 | AC153: 0.0117 | AD153: 0.002 | AF153: 163.0917 | AG153: -1.08 | AI153: 90.6117 | AJ153: -0.6 | AK153: 90.602 | AL153: -0.6 | AM153: 253.6937 | AN153: -1.68 | AP153: 0.085430431 | AQ153: -0.000488281 | AR153: 0.075730431 | AS153: -0.000488281 | AT153: 0.002 | AU153: 0 | AW153: 30.97848102 | AX153: -0.20507802 | AY153: 30.96878102 | AZ153: -0.20507802 | BB153: 0.4065119504 | BC153: -0.000793456625
AB154: 152 | AC154: 0.0117 | AD154: 0.002 | AF154: 164.1717 | AG154: -1.08 | AI154: 91.2117 | AJ154: -0.6 | AK154: 91.202 | AL154: -0.6 | AM154: 255.3737 | AN154: -1.68 | AP154: 0.085918712 | AQ154: -0.000488281 | AR154: 0.076218712 | AS154: -0.000488281 | AT154: 0.002 | AU154: 0 | AW154: 31.18355904 | AX154: -0.20507802 | AY154: 31.17385904 | AZ154: -0.20507802 | BB154: 0.407305407 | BC154: -0.000793456625
AB155: 153 | AC155: 0.0117 | AD155: 0.002 | AF155: 165.2517 | AG155: -1.08 | AI155: 91.8117 | AJ155: -0.6 | AK155: 91.802 | AL155: -0.6 | AM155: 257.0537 | AN155: -1.68 | AP155: 0.086406993 | AQ155: -0.000488281 | AR155: 0.076706993 | AS155: -0.000488281 | AT155: 0.002 | AU155: 0 | AW155: 31.38863706 | AX155: -0.20507802 | AY155: 31.37893706 | AZ155: -0.20507802 | BB155: 0.4080988636 | BC155: -0.000793456625
AB156: 154 | AC156: 0.0117 | AD156: 0.002 | AF156: 166.3317 | AG156: -1.08 | AI156: 92.4117 | AJ156: -0.6 | AK156: 92.402 | AL156: -0.6 | AM156: 258.7337 | AN156: -1.68 | AP156: 0.086895274 | AQ156: -0.000488281 | AR156: 0.077195274 | AS156: -0.000488281 | AT156: 0.002 | AU156: 0 | AW156: 31.59371508 | AX156: -0.20507802 | AY156: 31.58401508 | AZ156: -0.20507802 | BB156: 0.4088923202 | BC156: -0.000793456625
AB157: 155 | AC157: 0.0117 | AD157: 0.002 | AF157: 167.4117 | AG157: -1.08 | AI157: 93.0117 | AJ157: -0.6 | AK157: 93.002 | AL157: -0.6 | AM157: 260.4137 | AN157: -1.68 | AP157: 0.087383555 | AQ157: -0.000488281 | AR157: 0.077683555 | AS157: -0.000488281 | AT157: 0.002 | AU157: 0 | AW157: 31.7987931 | AX157: -0.20507802 | AY157: 31.7890931 | AZ157: -0.20507802 | BB157: 0.4096857769 | BC157: -0.000793456625
AB158: 156 | AC158: 0.0117 | AD158: 0.002 | AF158: 168.4917 | AG158: -1.08 | AI158: 93.6117 | AJ158: -0.6 | AK158: 93.602 | AL158: -0.6 | AM158: 262.0937 | AN158: -1.68 | AP158: 0.087871836 | AQ158: -0.000488281 | AR158: 0.078171836 | AS158: -0.000488281 | AT158: 0.002 | AU158: 0 | AW158: 32.00387112 | AX158: -0.20507802 | AY158: 31.99417112 | AZ158: -0.20507802 | BB158: 0.4104792335 | BC158: -0.000793456625
AB159: 157 | AC159: 0.0117 | AD159: 0.002 | AF159: 169.5717 | AG159: -1.08 | AI159: 94.2117 | AJ159: -0.6 | AK159: 94.202 | AL159: -0.6 | AM159: 263.7737 | AN159: -1.68 | AP159: 0.088360117 | AQ159: -0.000488281 | AR159: 0.078660117 | AS159: -0.000488281 | AT159: 0.002 | AU159: 0 | AW159: 32.20894914 | AX159: -0.20507802 | AY159: 32.19924914 | AZ159: -0.20507802 | BB159: 0.4112726901 | BC159: -0.000793456625
AB160: 158 | AC160: 0.0117 | AD160: 0.002 | AF160: 170.6517 | AG160: -1.08 | AI160: 94.8117 | AJ160: -0.6 | AK160: 94.802 | AL160: -0.6 | AM160: 265.4537 | AN160: -1.68 | AP160: 0.088848398 | AQ160: -0.000488281 | AR160: 0.079148398 | AS160: -0.000488281 | AT160: 0.002 | AU160: 0 | AW160: 32.41402716 | AX160: -0.20507802 | AY160: 32.40432716 | AZ160: -0.20507802 | BB160: 0.4120661468 | BC160: -0.000793456625
AB161: 159 | AC161: 0.0117 | AD161: 0.002 | AF161: 171.7317 | AG161: -1.08 | AI161: 95.4117 | AJ161: -0.6 | AK161: 95.402 | AL161: -0.6 | AM161: 267.1337 | AN161: -1.68 | AP161: 0.089336679 | AQ161: -0.000488281 | AR161: 0.079636679 | AS161: -0.000488281 | AT161: 0.002 | AU161: 0 | AW161: 32.61910518 | AX161: -0.20507802 | AY161: 32.60940518 | AZ161: -0.20507802 | BB161: 0.4128596034 | BC161: -0.000793456625
AB162: 160 | AC162: 0.0117 | AD162: 0.002 | AF162: 172.8117 | AG162: -1.08 | AI162: 96.0117 | AJ162: -0.6 | AK162: 96.002 | AL162: -0.6 | AM162: 268.8137 | AN162: -1.68 | AP162: 0.08982496 | AQ162: -0.000488281 | AR162: 0.08012496 | AS162: -0.000488281 | AT162: 0.002 | AU162: 0 | AW162: 32.8241832 | AX162: -0.20507802 | AY162: 32.8144832 | AZ162: -0.20507802 | BB162: 0.41365306 | BC162: -0.000793456625
AB163: 161 | AC163: 0.0117 | AD163: 0.002 | AF163: 173.8917 | AG163: -1.08 | AI163: 96.6117 | AJ163: -0.6 | AK163: 96.602 | AL163: -0.6 | AM163: 270.4937 | AN163: -1.68 | AP163: 0.090313241 | AQ163: -0.000488281 | AR163: 0.080613241 | AS163: -0.000488281 | AT163: 0.002 | AU163: 0 | AW163: 33.02926122 | AX163: -0.20507802 | AY163: 33.01956122 | AZ163: -0.20507802 | BB163: 0.4144465166 | BC163: -0.000793456625
AB164: 162 | AC164: 0.0117 | AD164: 0.002 | AF164: 174.9717 | AG164: -1.08 | AI164: 97.2117 | AJ164: -0.6 | AK164: 97.202 | AL164: -0.6 | AM164: 272.1737 | AN164: -1.68 | AP164: 0.090801522 | AQ164: -0.000488281 | AR164: 0.081101522 | AS164: -0.000488281 | AT164: 0.002 | AU164: 0 | AW164: 33.23433924 | AX164: -0.20507802 | AY164: 33.22463924 | AZ164: -0.20507802 | BB164: 0.4152399733 | BC164: -0.000793456625
AB165: 163 | AC165: 0.0117 | AD165: 0.002 | AF165: 176.0517 | AG165: -1.08 | AI165: 97.8117 | AJ165: -0.6 | AK165: 97.802 | AL165: -0.6 | AM165: 273.8537 | AN165: -1.68 | AP165: 0.091289803 | AQ165: -0.000488281 | AR165: 0.081589803 | AS165: -0.000488281 | AT165: 0.002 | AU165: 0 | AW165: 33.43941726 | AX165: -0.20507802 | AY165: 33.42971726 | AZ165: -0.20507802 | BB165: 0.4160334299 | BC165: -0.000793456625
AB166: 164 | AC166: 0.0117 | AD166: 0.002 | AF166: 177.1317 | AG166: -1.08 | AI166: 98.4117 | AJ166: -0.6 | AK166: 98.402 | AL166: -0.6 | AM166: 275.5337 | AN166: -1.68 | AP166: 0.091778084 | AQ166: -0.000488281 | AR166: 0.082078084 | AS166: -0.000488281 | AT166: 0.002 | AU166: 0 | AW166: 33.64449528 | AX166: -0.20507802 | AY166: 33.63479528 | AZ166: -0.20507802 | BB166: 0.4168268865 | BC166: -0.000793456625
AB167: 165 | AC167: 0.0117 | AD167: 0.002 | AF167: 178.2117 | AG167: -1.08 | AI167: 99.0117 | AJ167: -0.6 | AK167: 99.002 | AL167: -0.6 | AM167: 277.2137 | AN167: -1.68 | AP167: 0.092266365 | AQ167: -0.000488281 | AR167: 0.082566365 | AS167: -0.000488281 | AT167: 0.002 | AU167: 0 | AW167: 33.8495733 | AX167: -0.20507802 | AY167: 33.8398733 | AZ167: -0.20507802 | BB167: 0.4176203431 | BC167: -0.000793456625
AB168: 166 | AC168: 0.0117 | AD168: 0.002 | AF168: 179.2917 | AG168: -1.08 | AI168: 99.6117 | AJ168: -0.6 | AK168: 99.602 | AL168: -0.6 | AM168: 278.8937 | AN168: -1.68 | AP168: 0.092754646 | AQ168: -0.000488281 | AR168: 0.083054646 | AS168: -0.000488281 | AT168: 0.002 | AU168: 0 | AW168: 34.05465132 | AX168: -0.20507802 | AY168: 34.04495132 | AZ168: -0.20507802 | BB168: 0.4184137998 | BC168: -0.000793456625
AB169: =AB168+1 -> 167 | AC169: 0.0117 | AD169: 0.002 | AF169: 180.3717 | AG169: -1.08 | AI169: 100.2117 | AJ169: -0.6 | AK169: 100.202 | AL169: -0.6 | AM169: 280.5737 | AN169: -1.68 | AP169: 0.093242927 | AQ169: -0.000488281 | AR169: 0.083542927 | AS169: -0.000488281 | AT169: 0.002 | AU169: 0 | AW169: 34.25972934 | AX169: -0.20507802 | AY169: 34.25002934 | AZ169: -0.20507802 | BB169: 0.4192072564 | BC169: -0.000793456625
AB170: 168 | AC170: 0.0117 | AD170: 0.002 | AF170: 181.4517 | AG170: -1.08 | AI170: 100.8117 | AJ170: -0.6 | AK170: 100.802 | AL170: -0.6 | AM170: 282.2537 | AN170: -1.68 | AP170: 0.093731208 | AQ170: -0.000488281 | AR170: 0.084031208 | AS170: -0.000488281 | AT170: 0.002 | AU170: 0 | AW170: 34.46480736 | AX170: -0.20507802 | AY170: 34.45510736 | AZ170: -0.20507802 | BB170: 0.420000713 | BC170: -0.000793456625
AB171: 169 | AC171: 0.0117 | AD171: 0.002 | AF171: 182.5317 | AG171: -1.08 | AI171: 101.4117 | AJ171: -0.6 | AK171: 101.402 | AL171: -0.6 | AM171: 283.9337 | AN171: -1.68 | AP171: 0.094219489 | AQ171: -0.000488281 | AR171: 0.084519489 | AS171: -0.000488281 | AT171: 0.002 | AU171: 0 | AW171: 34.66988538 | AX171: -0.20507802 | AY171: 34.66018538 | AZ171: -0.20507802 | BB171: 0.4207941696 | BC171: -0.000793456625
AB172: 170 | AC172: 0.0117 | AD172: 0.002 | AF172: 183.6117 | AG172: -1.08 | AI172: 102.0117 | AJ172: -0.6 | AK172: 102.002 | AL172: -0.6 | AM172: 285.6137 | AN172: -1.68 | AP172: 0.09470777 | AQ172: -0.000488281 | AR172: 0.08500777 | AS172: -0.000488281 | AT172: 0.002 | AU172: 0 | AW172: 34.8749634 | AX172: -0.20507802 | AY172: 34.8652634 | AZ172: -0.20507802 | BB172: 0.4215876263 | BC172: -0.000793456625
AB173: 171 | AC173: 0.0117 | AD173: 0.002 | AF173: 184.6917 | AG173: -1.08 | AI173: 102.6117 | AJ173: -0.6 | AK173: 102.602 | AL173: -0.6 | AM173: 287.2937 | AN173: -1.68 | AP173: 0.095196051 | AQ173: -0.000488281 | AR173: 0.085496051 | AS173: -0.000488281 | AT173: 0.002 | AU173: 0 | AW173: 35.08004142 | AX173: -0.20507802 | AY173: 35.07034142 | AZ173: -0.20507802 | BB173: 0.4223810829 | BC173: -0.000793456625
AB174: 172 | AC174: 0.0117 | AD174: 0.002 | AF174: 185.7717 | AG174: -1.08 | AI174: 103.2117 | AJ174: -0.6 | AK174: 103.202 | AL174: -0.6 | AM174: 288.9737 | AN174: -1.68 | AP174: 0.095684332 | AQ174: -0.000488281 | AR174: 0.085984332 | AS174: -0.000488281 | AT174: 0.002 | AU174: 0 | AW174: 35.28511944 | AX174: -0.20507802 | AY174: 35.27541944 | AZ174: -0.20507802 | BB174: 0.4231745395 | BC174: -0.000793456625
AB175: 173 | AC175: 0.0117 | AD175: 0.002 | AF175: 186.8517 | AG175: -1.08 | AI175: 103.8117 | AJ175: -0.6 | AK175: 103.802 | AL175: -0.6 | AM175: 290.6537 | AN175: -1.68 | AP175: 0.096172613 | AQ175: -0.000488281 | AR175: 0.086472613 | AS175: -0.000488281 | AT175: 0.002 | AU175: 0 | AW175: 35.49019746 | AX175: -0.20507802 | AY175: 35.48049746 | AZ175: -0.20507802 | BB175: 0.4239679961 | BC175: -0.000793456625
AB176: 174 | AC176: 0.0117 | AD176: 0.002 | AF176: 187.9317 | AG176: -1.08 | AI176: 104.4117 | AJ176: -0.6 | AK176: 104.402 | AL176: -0.6 | AM176: 292.3337 | AN176: -1.68 | AP176: 0.096660894 | AQ176: -0.000488281 | AR176: 0.086960894 | AS176: -0.000488281 | AT176: 0.002 | AU176: 0 | AW176: 35.69527548 | AX176: -0.20507802 | AY176: 35.68557548 | AZ176: -0.20507802 | BB176: 0.4247614528 | BC176: -0.000793456625
AB177: 175 | AC177: 0.0117 | AD177: 0.002 | AF177: 189.0117 | AG177: -1.08 | AI177: 105.0117 | AJ177: -0.6 | AK177: 105.002 | AL177: -0.6 | AM177: 294.0137 | AN177: -1.68 | AP177: 0.097149175 | AQ177: -0.000488281 | AR177: 0.087449175 | AS177: -0.000488281 | AT177: 0.002 | AU177: 0 | AW177: 35.9003535 | AX177: -0.20507802 | AY177: 35.8906535 | AZ177: -0.20507802 | BB177: 0.4255549094 | BC177: -0.000793456625
AB178: 176 | AC178: 0.0117 | AD178: 0.002 | AF178: 190.0917 | AG178: -1.08 | AI178: 105.6117 | AJ178: -0.6 | AK178: 105.602 | AL178: -0.6 | AM178: 295.6937 | AN178: -1.68 | AP178: 0.097637456 | AQ178: -0.000488281 | AR178: 0.087937456 | AS178: -0.000488281 | AT178: 0.002 | AU178: 0 | AW178: 36.10543152 | AX178: -0.20507802 | AY178: 36.09573152 | AZ178: -0.20507802 | BB178: 0.426348366 | BC178: -0.000793456625
AB179: 177 | AC179: 0.0117 | AD179: 0.002 | AF179: 191.1717 | AG179: -1.08 | AI179: 106.2117 | AJ179: -0.6 | AK179: 106.202 | AL179: -0.6 | AM179: 297.3737 | AN179: -1.68 | AP179: 0.098125737 | AQ179: -0.000488281 | AR179: 0.088425737 | AS179: -0.000488281 | AT179: 0.002 | AU179: 0 | AW179: 36.31050954 | AX179: -0.20507802 | AY179: 36.30080954 | AZ179: -0.20507802 | BB179: 0.4271418226 | BC179: -0.000793456625
AB180: 178 | AC180: 0.0117 | AD180: 0.002 | AF180: 192.2517 | AG180: -1.08 | AI180: 106.8117 | AJ180: -0.6 | AK180: 106.802 | AL180: -0.6 | AM180: 299.0537 | AN180: -1.68 | AP180: 0.098614018 | AQ180: -0.000488281 | AR180: 0.088914018 | AS180: -0.000488281 | AT180: 0.002 | AU180: 0 | AW180: 36.51558756 | AX180: -0.20507802 | AY180: 36.50588756 | AZ180: -0.20507802 | BB180: 0.4279352793 | BC180: -0.000793456625
AB181: 179 | AC181: 0.0117 | AD181: 0.002 | AF181: 193.3317 | AG181: -1.08 | AI181: 107.4117 | AJ181: -0.6 | AK181: 107.402 | AL181: -0.6 | AM181: 300.7337 | AN181: -1.68 | AP181: 0.099102299 | AQ181: -0.000488281 | AR181: 0.089402299 | AS181: -0.000488281 | AT181: 0.002 | AU181: 0 | AW181: 36.72066558 | AX181: -0.20507802 | AY181: 36.71096558 | AZ181: -0.20507802 | BB181: 0.4287287359 | BC181: -0.000793456625
AB182: 180 | AC182: 0.0117 | AD182: 0.002 | AF182: 194.4117 | AG182: -1.08 | AI182: 108.0117 | AJ182: -0.6 | AK182: 108.002 | AL182: -0.6 | AM182: 302.4137 | AN182: -1.68 | AP182: 0.09959058 | AQ182: -0.000488281 | AR182: 0.08989058 | AS182: -0.000488281 | AT182: 0.002 | AU182: 0 | AW182: 36.9257436 | AX182: -0.20507802 | AY182: 36.9160436 | AZ182: -0.20507802 | BB182: 0.4295221925 | BC182: -0.000793456625
AB183: 181 | AC183: 0.0117 | AD183: 0.002 | AF183: 195.4917 | AG183: -1.08 | AI183: 108.6117 | AJ183: -0.6 | AK183: 108.602 | AL183: -0.6 | AM183: 304.0937 | AN183: -1.68 | AP183: 0.100078861 | AQ183: -0.000488281 | AR183: 0.090378861 | AS183: -0.000488281 | AT183: 0.002 | AU183: 0 | AW183: 37.13082162 | AX183: -0.20507802 | AY183: 37.12112162 | AZ183: -0.20507802 | BB183: 0.4303156491 | BC183: -0.000793456625
AB184: 182 | AC184: 0.0117 | AD184: 0.002 | AF184: 196.5717 | AG184: -1.08 | AI184: 109.2117 | AJ184: -0.6 | AK184: 109.202 | AL184: -0.6 | AM184: 305.7737 | AN184: -1.68 | AP184: 0.100567142 | AQ184: -0.000488281 | AR184: 0.090867142 | AS184: -0.000488281 | AT184: 0.002 | AU184: 0 | AW184: 37.33589964 | AX184: -0.20507802 | AY184: 37.32619964 | AZ184: -0.20507802 | BB184: 0.4311091057 | BC184: -0.000793456625
AB185: 183 | AC185: 0.0117 | AD185: 0.002 | AF185: 197.6517 | AG185: -1.08 | AI185: 109.8117 | AJ185: -0.6 | AK185: 109.802 | AL185: -0.6 | AM185: 307.4537 | AN185: -1.68 | AP185: 0.101055423 | AQ185: -0.000488281 | AR185: 0.091355423 | AS185: -0.000488281 | AT185: 0.002 | AU185: 0 | AW185: 37.54097766 | AX185: -0.20507802 | AY185: 37.53127766 | AZ185: -0.20507802 | BB185: 0.4319025624 | BC185: -0.000793456625
AB186: 184 | AC186: 0.0117 | AD186: 0.002 | AF186: 198.7317 | AG186: -1.08 | AI186: 110.4117 | AJ186: -0.6 | AK186: 110.402 | AL186: -0.6 | AM186: 309.1337 | AN186: -1.68 | AP186: 0.101543704 | AQ186: -0.000488281 | AR186: 0.091843704 | AS186: -0.000488281 | AT186: 0.002 | AU186: 0 | AW186: 37.74605568 | AX186: -0.20507802 | AY186: 37.73635568 | AZ186: -0.20507802 | BB186: 0.432696019 | BC186: -0.000793456625
AB187: 185 | AC187: 0.0117 | AD187: 0.002 | AF187: 199.8117 | AG187: -1.08 | AI187: 111.0117 | AJ187: -0.6 | AK187: 111.002 | AL187: -0.6 | AM187: 310.8137 | AN187: -1.68 | AP187: 0.102031985 | AQ187: -0.000488281 | AR187: 0.092331985 | AS187: -0.000488281 | AT187: 0.002 | AU187: 0 | AW187: 37.9511337 | AX187: -0.20507802 | AY187: 37.9414337 | AZ187: -0.20507802 | BB187: 0.4334894756 | BC187: -0.000793456625
AB188: 186 | AC188: 0.0117 | AD188: 0.002 | AF188: 200.8917 | AG188: -1.08 | AI188: 111.6117 | AJ188: -0.6 | AK188: 111.602 | AL188: -0.6 | AM188: 312.4937 | AN188: -1.68 | AP188: 0.102520266 | AQ188: -0.000488281 | AR188: 0.092820266 | AS188: -0.000488281 | AT188: 0.002 | AU188: 0 | AW188: 38.15621172 | AX188: -0.20507802 | AY188: 38.14651172 | AZ188: -0.20507802 | BB188: 0.4342829323 | BC188: -0.000793456625
AB189: 187 | AC189: 0.0117 | AD189: 0.002 | AF189: 201.9717 | AG189: -1.08 | AI189: 112.2117 | AJ189: -0.6 | AK189: 112.202 | AL189: -0.6 | AM189: 314.1737 | AN189: -1.68 | AP189: 0.103008547 | AQ189: -0.000488281 | AR189: 0.093308547 | AS189: -0.000488281 | AT189: 0.002 | AU189: 0 | AW189: 38.36128974 | AX189: -0.20507802 | AY189: 38.35158974 | AZ189: -0.20507802 | BB189: 0.4350763889 | BC189: -0.000793456625
AB190: 188 | AC190: 0.0117 | AD190: 0.002 | AF190: 203.0517 | AG190: -1.08 | AI190: 112.8117 | AJ190: -0.6 | AK190: 112.802 | AL190: -0.6 | AM190: 315.8537 | AN190: -1.68 | AP190: 0.103496828 | AQ190: -0.000488281 | AR190: 0.093796828 | AS190: -0.000488281 | AT190: 0.002 | AU190: 0 | AW190: 38.56636776 | AX190: -0.20507802 | AY190: 38.55666776 | AZ190: -0.20507802 | BB190: 0.4358698455 | BC190: -0.000793456625
AB191: 189 | AC191: 0.0117 | AD191: 0.002 | AF191: 204.1317 | AG191: -1.08 | AI191: 113.4117 | AJ191: -0.6 | AK191: 113.402 | AL191: -0.6 | AM191: 317.5337 | AN191: -1.68 | AP191: 0.103985109 | AQ191: -0.000488281 | AR191: 0.094285109 | AS191: -0.000488281 | AT191: 0.002 | AU191: 0 | AW191: 38.77144578 | AX191: -0.20507802 | AY191: 38.76174578 | AZ191: -0.20507802 | BB191: 0.4366633021 | BC191: -0.000793456625
AB192: 190 | AC192: 0.0117 | AD192: 0.002 | AF192: 205.2117 | AG192: -1.08 | AI192: 114.0117 | AJ192: -0.6 | AK192: 114.002 | AL192: -0.6 | AM192: 319.2137 | AN192: -1.68 | AP192: 0.10447339 | AQ192: -0.000488281 | AR192: 0.09477339 | AS192: -0.000488281 | AT192: 0.002 | AU192: 0 | AW192: 38.9765238 | AX192: -0.20507802 | AY192: 38.9668238 | AZ192: -0.20507802 | BB192: 0.4374567588 | BC192: -0.000793456625
AB193: 191 | AC193: 0.0117 | AD193: 0.002 | AF193: 206.2917 | AG193: -1.08 | AI193: 114.6117 | AJ193: -0.6 | AK193: 114.602 | AL193: -0.6 | AM193: 320.8937 | AN193: -1.68 | AP193: 0.104961671 | AQ193: -0.000488281 | AR193: 0.095261671 | AS193: -0.000488281 | AT193: 0.002 | AU193: 0 | AW193: 39.18160182 | AX193: -0.20507802 | AY193: 39.17190182 | AZ193: -0.20507802 | BB193: 0.4382502154 | BC193: -0.000793456625
AB194: 192 | AC194: 0.0117 | AD194: 0.002 | AF194: 207.3717 | AG194: -1.08 | AI194: 115.2117 | AJ194: -0.6 | AK194: 115.202 | AL194: -0.6 | AM194: =AF194+AK194 -> 322.5737 | AN194: -1.68 | AP194: 0.105449952 | AQ194: -0.000488281 | AR194: 0.095749952 | AS194: -0.000488281 | AT194: 0.002 | AU194: 0 | AW194: 39.38667984 | AX194: -0.20507802 | AY194: 39.37697984 | AZ194: -0.20507802 | BB194: 0.439043672 | BC194: -0.000793456625
AB195: 193 | AC195: 0.0117 | AD195: 0.002 | AF195: 208.4517 | AG195: =AF194-AF195 -> -1.08 | AI195: 115.8117 | AJ195: -0.6 | AK195: 115.802 | AL195: -0.6 | AM195: 324.2537 | AN195: -1.68 | AP195: 0.105938233 | AQ195: -0.000488281 | AR195: 0.096238233 | AS195: -0.000488281 | AT195: 0.002 | AU195: 0 | AW195: 39.59175786 | AX195: -0.20507802 | AY195: 39.58205786 | AZ195: -0.20507802 | BB195: 0.4398371286 | BC195: -0.000793456625
AB196: 194 | AC196: 0.0117 | AD196: 0.002 | AF196: 209.5317 | AG196: -1.08 | AI196: 116.4117 | AJ196: =AI195-AI196 -> -0.6 | AK196: =$AD196+(($AB196*$W$2)*$L$2/($S$2*$T$2)*$U$2) -> 116.402 | AL196: -0.6 | AM196: 325.9337 | AN196: -1.68 | AP196: =$AC196+(($AB196*$X$2)*($O$2/($R$2*$T$2))) -> 0.106426514 | AQ196: -0.000488281 | AR196: 0.096726514 | AS196: -0.000488281 | AT196: =AD196 -> 0.002 | AU196: 0 | AW196: 39.79683588 | AX196: -0.20507802 | AY196: =$AD196+(($AB196*$W$2)*$M$2/($S$2*$T$2)*$U$2) -> 39.78713588 | AZ196: -0.20507802 | BB196: =$AC196+(($AB196*$X$2)*(($O$2+$P$2)/($R$2*$T$2)))+($G$2*1) -> 0.4406305853 | BC196: -0.000793456625
AB197: 195 | AC197: =IF($AB197<$Y$4,$Y$2,(IF(($AC196-$Y$3)>0,$AC196-$Y$3,0))) -> 0.0117 | AD197: =IF($AB197<$AA$4,$AA$2,(IF(($AD196-$AA$3)>0,$AD196-$AA$3,0))) -> 0.002 | AF197: =$AC197+(($AB197*$W$2)*$K$2/($Q$2*$T$2)) -> 210.6117 | AG197: -1.08 | AI197: =$AC197+(($AB197*$W$2)*$L$2/($Q$2*$T$2)) -> 117.0117 | AJ197: =AI196-AI197 -> -0.6 | AK197: 117.002 | AL197: -0.6 | AM197: 327.6137 | AN197: -1.68 | AP197: 0.106914795 | AQ197: =AP196-AP197 -> -0.000488281 | AR197: 0.097214795 | AS197: -0.000488281 | AT197: 0.002 | AU197: 0 | AW197: =$AC197+(($AB197*$W$2)*$M$2/($Q$2*$T$2)) -> 40.0019139 | AX197: =AW196-AW197 -> -0.20507802 | AY197: 39.9922139 | AZ197: =AY196-AY197 -> -0.20507802 | BB197: 0.4414240419 | BC197: =BB196-BB197 -> -0.000793456625
AB198: 196 | AC198: 0.0117 | AD198: 0.002 | AF198: 211.6917 | AG198: -1.08 | AI198: 117.6117 | AJ198: -0.6 | AK198: 117.602 | AL198: -0.6 | AM198: 329.2937 | AN198: -1.68 | AP198: 0.107403076 | AQ198: -0.000488281 | AR198: 0.097703076 | AS198: -0.000488281 | AT198: 0.002 | AU198: 0 | AW198: 40.20699192 | AX198: -0.20507802 | AY198: 40.19729192 | AZ198: -0.20507802 | BB198: 0.4422174985 | BC198: -0.000793456625
AB199: 197 | AC199: 0.0117 | AD199: 0.002 | AF199: 212.7717 | AG199: -1.08 | AI199: 118.2117 | AJ199: -0.6 | AK199: 118.202 | AL199: -0.6 | AM199: 330.9737 | AN199: -1.68 | AP199: 0.107891357 | AQ199: -0.000488281 | AR199: 0.098191357 | AS199: -0.000488281 | AT199: 0.002 | AU199: 0 | AW199: 40.41206994 | AX199: -0.20507802 | AY199: 40.40236994 | AZ199: -0.20507802 | BB199: 0.4430109551 | BC199: -0.000793456625
AB200: 198 | AC200: 0.0117 | AD200: 0.002 | AF200: 213.8517 | AG200: -1.08 | AI200: 118.8117 | AJ200: -0.6 | AK200: 118.802 | AL200: -0.6 | AM200: 332.6537 | AN200: -1.68 | AP200: 0.108379638 | AQ200: -0.000488281 | AR200: 0.098679638 | AS200: -0.000488281 | AT200: 0.002 | AU200: 0 | AW200: 40.61714796 | AX200: -0.20507802 | AY200: 40.60744796 | AZ200: -0.20507802 | BB200: 0.4438044118 | BC200: -0.000793456625
... 925 more rows

Sheet Graph (hidden)
